Workbook

Sheet HOME

Sheet PRINT CHEQUE
Q2: Customization | W2: Prefix | AA2: Suffix
Q3: NAME | W3: ** | AA3: **
Q4: AMOUNT | W4: ** | AA4: /-
Q5: AMOUNT TEXT | W5: ** | AA5: Only /-
R7: 5 | X7: ="Total Words In Text Amount Is "&programing!AP4 -> Total Words In Text Amount Is 48
X9: Arjust Words in 1st row of two rows
X10: 60
W14: CHEQUE information
W15: CHEQUE NO | AA15: =programing!C16 -> 573712
G16: =IF(programing!$C$19<>"","","EXPIRED CHEQUE ") ->  | W16: POST DATED | AA16: =programing!C18 -> 2025-10-15
S17: Print | W17: DAYS LEFT | AA17: =programing!C19 -> 50 Days to go
R19: =programing!Q35 -> 
B20: A/C payee style | N20: Only
R23: =IF(programing!$C$31=3,IF($R$19<>"","",IF(programing!$C$31="","Permanent free","Free Trial for "&programing!C31&" Days")),IF($R$19<>"","",IF(programing!$C$31="","Permanent free","Subscribed for "&programing!C31&" Days"))) -> Free Trial for 3 Days

Sheet PRINT BACK SIDE
Q2: PRINT BACK SIDE OF CHEQUE
R7: ='PRINT CHEQUE'!R7:V7 -> 5 | Z7: OTHER NOTES
X9: 1 | Y9: Address
X11: 2 | Y11: XYZ
W14: CHEQUE information
W15: CHEQUE NO | AA15: =programing!C16 -> 573712
W16: POST DATED | AA16: =programing!C18 -> 2025-10-15
S17: Print | W17: DAYS LEFT | AA17: =programing!C19 -> 50 Days to go
R19: =programing!Q35 -> 
R23: =IF(programing!$C$31=3,IF($R$19<>"","",IF(programing!$C$31="","Permanent free","Free Trial for "&programing!C31&" Days")),IF($R$19<>"","",IF(programing!$C$31="","Permanent free","Subscribed for "&programing!C31&" Days"))) -> Free Trial for 3 Days

Sheet ISSUED LIST
B5: ='PRINT CHEQUE'!R7 -> 5 | C5: FRONT SIDE OF CHEQUE | L5: BACK SIDE OF CHEQUE
B6: S.No. | C6: Cheque Date | D6: Company Name | E6: Amount | F6: Cheque Type | G6: Cheque No. | H6: Remarks | I6: Post Date | J6: Days to mature | K6: Duration | L6: Beneficiary Name | M6: A/c Type | N6: Beneficiary A/c No. | O6: Mobile No. | P6: Bank Name | Q6: IFSC Code
B7: =IF(ISSUELIST[[#This Row],[Company Name]]="","", COUNTIF( INDEX(ISSUELIST[Company Name],1) : ISSUELIST[[#This Row],[Company Name]], "<>" ) ) -> 1 | C7: 2025-09-18 | D7: Smart Computers | E7: 15598 | F7: A/c Payee | G7: 680235 | H7: Misc | I7: 2025-09-02 | J7: =IF(ISSUELIST[[#This Row],[Cheque Date]]="","",IF(ISSUELIST[[#This Row],[Post Date]]>ISSUELIST[[#This Row],[Cheque Date]],"INVALID DATE",IF(ISSUELIST[[#This Row],[Cheque Date]]-TODAY()>0,ISSUELIST[[#This Row],[Cheque Date]]-TODAY()&" Days to go",IF(ISSUELIST[[#This Row],[Cheque Date]]-TODAY()=0,"TODAY","")))) ->  | K7: =IF(ISSUELIST[[#This Row],[Cheque Date]]="","",IF(ISSUELIST[[#This Row],[Post Date]]="","",ISSUELIST[[#This Row],[Cheque Date]]-ISSUELIST[[#This Row],[Post Date]])) -> 16 | L7: Mahesh Soni | M7: Current A/c | N7: 165408911385 | O7: 9067155384 | P7: SBI | Q7: SBI0793188
B8: =IF(ISSUELIST[[#This Row],[Company Name]]="","", COUNTIF( INDEX(ISSUELIST[Company Name],1) : ISSUELIST[[#This Row],[Company Name]], "<>" ) ) -> 2 | C8: 2025-11-10 | D8: City Supermarket | E8: 32809 | F8: A/c Payee | G8: 706755 | H8: Payment | I8: 2025-10-12 | J8: =IF(ISSUELIST[[#This Row],[Cheque Date]]="","",IF(ISSUELIST[[#This Row],[Post Date]]>ISSUELIST[[#This Row],[Cheque Date]],"INVALID DATE",IF(ISSUELIST[[#This Row],[Cheque Date]]-TODAY()>0,ISSUELIST[[#This Row],[Cheque Date]]-TODAY()&" Days to go",IF(ISSUELIST[[#This Row],[Cheque Date]]-TODAY()=0,"TODAY","")))) -> 33 Days to go | K8: =IF(ISSUELIST[[#This Row],[Cheque Date]]="","",IF(ISSUELIST[[#This Row],[Post Date]]="","",ISSUELIST[[#This Row],[Cheque Date]]-ISSUELIST[[#This Row],[Post Date]])) -> 29 | L8: Pawan Singh | M8: Saving A/c | N8: 390793966518 | O8: 9008473344 | P8: ICICI | Q8: ICIC0988424
B9: =IF(ISSUELIST[[#This Row],[Company Name]]="","", COUNTIF( INDEX(ISSUELIST[Company Name],1) : ISSUELIST[[#This Row],[Company Name]], "<>" ) ) -> 3 | C9: 2025-11-11 | D9: New Fashion Corner | E9: 20968 | F9: A/c Payee | G9: 309897 | H9: Payment | I9: 2025-10-19 | J9: =IF(ISSUELIST[[#This Row],[Cheque Date]]="","",IF(ISSUELIST[[#This Row],[Post Date]]>ISSUELIST[[#This Row],[Cheque Date]],"INVALID DATE",IF(ISSUELIST[[#This Row],[Cheque Date]]-TODAY()>0,ISSUELIST[[#This Row],[Cheque Date]]-TODAY()&" Days to go",IF(ISSUELIST[[#This Row],[Cheque Date]]-TODAY()=0,"TODAY","")))) -> 34 Days to go | K9: =IF(ISSUELIST[[#This Row],[Cheque Date]]="","",IF(ISSUELIST[[#This Row],[Post Date]]="","",ISSUELIST[[#This Row],[Cheque Date]]-ISSUELIST[[#This Row],[Post Date]])) -> 23 | L9: Prakash Nayak | M9: Saving A/c | N9: 922876620225 | O9: 9349568052 | P9: PNB | Q9: PNB0624033
B10: =IF(ISSUELIST[[#This Row],[Company Name]]="","", COUNTIF( INDEX(ISSUELIST[Company Name],1) : ISSUELIST[[#This Row],[Company Name]], "<>" ) ) -> 4 | C10: 2025-11-19 | D10: Sai Stationery | E10: 43084 | F10: A/c Payee | G10: 899986 | H10: Advance | I10: 2025-10-15 | J10: =IF(ISSUELIST[[#This Row],[Cheque Date]]="","",IF(ISSUELIST[[#This Row],[Post Date]]>ISSUELIST[[#This Row],[Cheque Date]],"INVALID DATE",IF(ISSUELIST[[#This Row],[Cheque Date]]-TODAY()>0,ISSUELIST[[#This Row],[Cheque Date]]-TODAY()&" Days to go",IF(ISSUELIST[[#This Row],[Cheque Date]]-TODAY()=0,"TODAY","")))) -> 42 Days to go | K10: =IF(ISSUELIST[[#This Row],[Cheque Date]]="","",IF(ISSUELIST[[#This Row],[Post Date]]="","",ISSUELIST[[#This Row],[Cheque Date]]-ISSUELIST[[#This Row],[Post Date]])) -> 35 | L10: Ranjan Rout | M10: Current A/c | N10: 271449344387 | O10: 9043419864 | P10: SBI | Q10: SBI0758901
B11: =IF(ISSUELIST[[#This Row],[Company Name]]="","", COUNTIF( INDEX(ISSUELIST[Company Name],1) : ISSUELIST[[#This Row],[Company Name]], "<>" ) ) -> 5 | C11: 2025-11-27 | D11: Shanti Hardware | E11: 45301 | F11: A/c Payee | G11: 573712 | H11: Misc | I11: 2025-10-15 | J11: =IF(ISSUELIST[[#This Row],[Cheque Date]]="","",IF(ISSUELIST[[#This Row],[Post Date]]>ISSUELIST[[#This Row],[Cheque Date]],"INVALID DATE",IF(ISSUELIST[[#This Row],[Cheque Date]]-TODAY()>0,ISSUELIST[[#This Row],[Cheque Date]]-TODAY()&" Days to go",IF(ISSUELIST[[#This Row],[Cheque Date]]-TODAY()=0,"TODAY","")))) -> 50 Days to go | K11: =IF(ISSUELIST[[#This Row],[Cheque Date]]="","",IF(ISSUELIST[[#This Row],[Post Date]]="","",ISSUELIST[[#This Row],[Cheque Date]]-ISSUELIST[[#This Row],[Post Date]])) -> 43 | L11: Manoj Sethi | M11: Saving A/c | N11: 160860364846 | O11: 9401252671 | P11: Axis | Q11: AXIS0278585
B12: =IF(ISSUELIST[[#This Row],[Company Name]]="","", COUNTIF( INDEX(ISSUELIST[Company Name],1) : ISSUELIST[[#This Row],[Company Name]], "<>" ) ) -> 6 | C12: 2025-11-13 | D12: City Supermarket | E12: 29246 | F12: A/c Payee | G12: 707157 | H12: Bill | I12: 2025-10-15 | J12: =IF(ISSUELIST[[#This Row],[Cheque Date]]="","",IF(ISSUELIST[[#This Row],[Post Date]]>ISSUELIST[[#This Row],[Cheque Date]],"INVALID DATE",IF(ISSUELIST[[#This Row],[Cheque Date]]-TODAY()>0,ISSUELIST[[#This Row],[Cheque Date]]-TODAY()&" Days to go",IF(ISSUELIST[[#This Row],[Cheque Date]]-TODAY()=0,"TODAY","")))) -> 36 Days to go | K12: =IF(ISSUELIST[[#This Row],[Cheque Date]]="","",IF(ISSUELIST[[#This Row],[Post Date]]="","",ISSUELIST[[#This Row],[Cheque Date]]-ISSUELIST[[#This Row],[Post Date]])) -> 29 | L12: Sanjay Sahu | M12: Saving A/c | N12: 494665316042 | O12: 9245245143 | P12: ICICI | Q12: ICIC0349343
B13: =IF(ISSUELIST[[#This Row],[Company Name]]="","", COUNTIF( INDEX(ISSUELIST[Company Name],1) : ISSUELIST[[#This Row],[Company Name]], "<>" ) ) -> 7 | C13: 2025-11-30 | D13: City Supermarket | E13: 41603 | F13: A/c Payee | G13: 596912 | H13: Payment | I13: 2025-10-15 | J13: =IF(ISSUELIST[[#This Row],[Cheque Date]]="","",IF(ISSUELIST[[#This Row],[Post Date]]>ISSUELIST[[#This Row],[Cheque Date]],"INVALID DATE",IF(ISSUELIST[[#This Row],[Cheque Date]]-TODAY()>0,ISSUELIST[[#This Row],[Cheque Date]]-TODAY()&" Days to go",IF(ISSUELIST[[#This Row],[Cheque Date]]-TODAY()=0,"TODAY","")))) -> 53 Days to go | K13: =IF(ISSUELIST[[#This Row],[Cheque Date]]="","",IF(ISSUELIST[[#This Row],[Post Date]]="","",ISSUELIST[[#This Row],[Cheque Date]]-ISSUELIST[[#This Row],[Post Date]])) -> 46 | L13: Kishore Behera | M13: Saving A/c | N13: 932406050503 | O13: 9183395923 | P13: PNB | Q13: PNB0837690
B14: =IF(ISSUELIST[[#This Row],[Company Name]]="","", COUNTIF( INDEX(ISSUELIST[Company Name],1) : ISSUELIST[[#This Row],[Company Name]], "<>" ) ) -> 8 | C14: 2025-11-23 | D14: HAPPY STORE | E14: 26274 | F14: A/c Payee | G14: 136890 | H14: Advance | I14: 2025-10-27 | J14: =IF(ISSUELIST[[#This Row],[Cheque Date]]="","",IF(ISSUELIST[[#This Row],[Post Date]]>ISSUELIST[[#This Row],[Cheque Date]],"INVALID DATE",IF(ISSUELIST[[#This Row],[Cheque Date]]-TODAY()>0,ISSUELIST[[#This Row],[Cheque Date]]-TODAY()&" Days to go",IF(ISSUELIST[[#This Row],[Cheque Date]]-TODAY()=0,"TODAY","")))) -> 46 Days to go | K14: =IF(ISSUELIST[[#This Row],[Cheque Date]]="","",IF(ISSUELIST[[#This Row],[Post Date]]="","",ISSUELIST[[#This Row],[Cheque Date]]-ISSUELIST[[#This Row],[Post Date]])) -> 27 | L14: Gopal Das | M14: Current A/c | N14: 847987615547 | O14: 9573476427 | P14: PNB | Q14: PNB0679401
B15: =IF(ISSUELIST[[#This Row],[Company Name]]="","", COUNTIF( INDEX(ISSUELIST[Company Name],1) : ISSUELIST[[#This Row],[Company Name]], "<>" ) ) -> 9 | C15: 2025-11-28 | D15: Sai Stationery | E15: 38287 | F15: A/c Payee | G15: 145579 | H15: Bill | I15: 2025-10-24 | J15: =IF(ISSUELIST[[#This Row],[Cheque Date]]="","",IF(ISSUELIST[[#This Row],[Post Date]]>ISSUELIST[[#This Row],[Cheque Date]],"INVALID DATE",IF(ISSUELIST[[#This Row],[Cheque Date]]-TODAY()>0,ISSUELIST[[#This Row],[Cheque Date]]-TODAY()&" Days to go",IF(ISSUELIST[[#This Row],[Cheque Date]]-TODAY()=0,"TODAY","")))) -> 51 Days to go | K15: =IF(ISSUELIST[[#This Row],[Cheque Date]]="","",IF(ISSUELIST[[#This Row],[Post Date]]="","",ISSUELIST[[#This Row],[Cheque Date]]-ISSUELIST[[#This Row],[Post Date]])) -> 35 | L15: Gopal Das | M15: Saving A/c | N15: 407892692315 | O15: 9708113268 | P15: Axis | Q15: AXIS0298041
B16: =IF(ISSUELIST[[#This Row],[Company Name]]="","", COUNTIF( INDEX(ISSUELIST[Company Name],1) : ISSUELIST[[#This Row],[Company Name]], "<>" ) ) -> 10 | C16: 2025-11-15 | D16: Om Electronics | E16: 42504 | F16: A/c Payee | G16: 108916 | H16: Bill | I16: 2025-10-23 | J16: =IF(ISSUELIST[[#This Row],[Cheque Date]]="","",IF(ISSUELIST[[#This Row],[Post Date]]>ISSUELIST[[#This Row],[Cheque Date]],"INVALID DATE",IF(ISSUELIST[[#This Row],[Cheque Date]]-TODAY()>0,ISSUELIST[[#This Row],[Cheque Date]]-TODAY()&" Days to go",IF(ISSUELIST[[#This Row],[Cheque Date]]-TODAY()=0,"TODAY","")))) -> 38 Days to go | K16: =IF(ISSUELIST[[#This Row],[Cheque Date]]="","",IF(ISSUELIST[[#This Row],[Post Date]]="","",ISSUELIST[[#This Row],[Cheque Date]]-ISSUELIST[[#This Row],[Post Date]])) -> 23 | L16: Kishore Behera | M16: Saving A/c | N16: 950426671430 | O16: 9753249872 | P16: HDFC | Q16: HDFC0308209
B17: =IF(ISSUELIST[[#This Row],[Company Name]]="","", COUNTIF( INDEX(ISSUELIST[Company Name],1) : ISSUELIST[[#This Row],[Company Name]], "<>" ) ) -> 11 | C17: 2025-11-27 | D17: Sunrise Bakery | E17: 35814 | F17: A/c Payee | G17: 295424 | H17: Misc | I17: 2025-10-15 | J17: =IF(ISSUELIST[[#This Row],[Cheque Date]]="","",IF(ISSUELIST[[#This Row],[Post Date]]>ISSUELIST[[#This Row],[Cheque Date]],"INVALID DATE",IF(ISSUELIST[[#This Row],[Cheque Date]]-TODAY()>0,ISSUELIST[[#This Row],[Cheque Date]]-TODAY()&" Days to go",IF(ISSUELIST[[#This Row],[Cheque Date]]-TODAY()=0,"TODAY","")))) -> 50 Days to go | K17: =IF(ISSUELIST[[#This Row],[Cheque Date]]="","",IF(ISSUELIST[[#This Row],[Post Date]]="","",ISSUELIST[[#This Row],[Cheque Date]]-ISSUELIST[[#This Row],[Post Date]])) -> 43 | L17: Gopal Das | M17: Current A/c | N17: 847987615547 | O17: 9573476427 | P17: PNB | Q17: PNB0550732
B18: =IF(ISSUELIST[[#This Row],[Company Name]]="","", COUNTIF( INDEX(ISSUELIST[Company Name],1) : ISSUELIST[[#This Row],[Company Name]], "<>" ) ) -> 12 | C18: 2025-11-13 | D18: Om Electronics | E18: 43461 | F18: A/c Payee | G18: 629212 | H18: Advance | I18: 2025-10-22 | J18: =IF(ISSUELIST[[#This Row],[Cheque Date]]="","",IF(ISSUELIST[[#This Row],[Post Date]]>ISSUELIST[[#This Row],[Cheque Date]],"INVALID DATE",IF(ISSUELIST[[#This Row],[Cheque Date]]-TODAY()>0,ISSUELIST[[#This Row],[Cheque Date]]-TODAY()&" Days to go",IF(ISSUELIST[[#This Row],[Cheque Date]]-TODAY()=0,"TODAY","")))) -> 36 Days to go | K18: =IF(ISSUELIST[[#This Row],[Cheque Date]]="","",IF(ISSUELIST[[#This Row],[Post Date]]="","",ISSUELIST[[#This Row],[Cheque Date]]-ISSUELIST[[#This Row],[Post Date]])) -> 22 | L18: Binod Das | M18: Current A/c | N18: 232532493529 | O18: 9682355810 | P18: SBI | Q18: SBI0598142
B19: =IF(ISSUELIST[[#This Row],[Company Name]]="","", COUNTIF( INDEX(ISSUELIST[Company Name],1) : ISSUELIST[[#This Row],[Company Name]], "<>" ) ) -> 13 | C19: 2025-11-22 | D19: Janta Medical Store | E19: 14712 | F19: A/c Payee | G19: 650756 | H19: Advance | I19: 2025-10-28 | J19: =IF(ISSUELIST[[#This Row],[Cheque Date]]="","",IF(ISSUELIST[[#This Row],[Post Date]]>ISSUELIST[[#This Row],[Cheque Date]],"INVALID DATE",IF(ISSUELIST[[#This Row],[Cheque Date]]-TODAY()>0,ISSUELIST[[#This Row],[Cheque Date]]-TODAY()&" Days to go",IF(ISSUELIST[[#This Row],[Cheque Date]]-TODAY()=0,"TODAY","")))) -> 45 Days to go | K19: =IF(ISSUELIST[[#This Row],[Cheque Date]]="","",IF(ISSUELIST[[#This Row],[Post Date]]="","",ISSUELIST[[#This Row],[Cheque Date]]-ISSUELIST[[#This Row],[Post Date]])) -> 25 | L19: Bablu Nayak | M19: Current A/c | N19: 346395632366 | O19: 9562483143 | P19: HDFC | Q19: HDFC0983285
B20: =IF(ISSUELIST[[#This Row],[Company Name]]="","", COUNTIF( INDEX(ISSUELIST[Company Name],1) : ISSUELIST[[#This Row],[Company Name]], "<>" ) ) -> 14 | C20: 2025-11-13 | D20: Shanti Hardware | E20: 15602 | F20: A/c Payee | G20: 562539 | H20: Advance | I20: 2025-10-28 | J20: =IF(ISSUELIST[[#This Row],[Cheque Date]]="","",IF(ISSUELIST[[#This Row],[Post Date]]>ISSUELIST[[#This Row],[Cheque Date]],"INVALID DATE",IF(ISSUELIST[[#This Row],[Cheque Date]]-TODAY()>0,ISSUELIST[[#This Row],[Cheque Date]]-TODAY()&" Days to go",IF(ISSUELIST[[#This Row],[Cheque Date]]-TODAY()=0,"TODAY","")))) -> 36 Days to go | K20: =IF(ISSUELIST[[#This Row],[Cheque Date]]="","",IF(ISSUELIST[[#This Row],[Post Date]]="","",ISSUELIST[[#This Row],[Cheque Date]]-ISSUELIST[[#This Row],[Post Date]])) -> 16 | L20: Gopal Das | M20: Saving A/c | N20: 407892692315 | O20: 9708113268 | P20: ICICI | Q20: ICIC0947367
B21: =IF(ISSUELIST[[#This Row],[Company Name]]="","", COUNTIF( INDEX(ISSUELIST[Company Name],1) : ISSUELIST[[#This Row],[Company Name]], "<>" ) ) -> 15 | C21: 2025-11-14 | D21: New Fashion Corner | E21: 33583 | F21: A/c Payee | G21: 936275 | H21: Misc | I21: 2025-10-27 | J21: =IF(ISSUELIST[[#This Row],[Cheque Date]]="","",IF(ISSUELIST[[#This Row],[Post Date]]>ISSUELIST[[#This Row],[Cheque Date]],"INVALID DATE",IF(ISSUELIST[[#This Row],[Cheque Date]]-TODAY()>0,ISSUELIST[[#This Row],[Cheque Date]]-TODAY()&" Days to go",IF(ISSUELIST[[#This Row],[Cheque Date]]-TODAY()=0,"TODAY","")))) -> 37 Days to go | K21: =IF(ISSUELIST[[#This Row],[Cheque Date]]="","",IF(ISSUELIST[[#This Row],[Post Date]]="","",ISSUELIST[[#This Row],[Cheque Date]]-ISSUELIST[[#This Row],[Post Date]])) -> 18 | L21: Rajesh Gupta | M21: Current A/c | N21: 173009287805 | O21: 9957350517 | P21: ICICI | Q21: ICIC0259170
B22: =IF(ISSUELIST[[#This Row],[Company Name]]="","", COUNTIF( INDEX(ISSUELIST[Company Name],1) : ISSUELIST[[#This Row],[Company Name]], "<>" ) ) -> 16 | C22: 2025-11-24 | D22: City Supermarket | E22: 1499 | F22: A/c Payee | G22: 489933 | H22: Bill | I22: 2025-10-16 | J22: =IF(ISSUELIST[[#This Row],[Cheque Date]]="","",IF(ISSUELIST[[#This Row],[Post Date]]>ISSUELIST[[#This Row],[Cheque Date]],"INVALID DATE",IF(ISSUELIST[[#This Row],[Cheque Date]]-TODAY()>0,ISSUELIST[[#This Row],[Cheque Date]]-TODAY()&" Days to go",IF(ISSUELIST[[#This Row],[Cheque Date]]-TODAY()=0,"TODAY","")))) -> 47 Days to go | K22: =IF(ISSUELIST[[#This Row],[Cheque Date]]="","",IF(ISSUELIST[[#This Row],[Post Date]]="","",ISSUELIST[[#This Row],[Cheque Date]]-ISSUELIST[[#This Row],[Post Date]])) -> 39 | L22: Binod Das | M22: Current A/c | N22: 579418926016 | O22: 9794979135 | P22: SBI | Q22: SBI0636617
B23: =IF(ISSUELIST[[#This Row],[Company Name]]="","", COUNTIF( INDEX(ISSUELIST[Company Name],1) : ISSUELIST[[#This Row],[Company Name]], "<>" ) ) -> 17 | C23: 2025-11-30 | D23: SADHU | E23: 18323 | F23: A/c Payee | G23: 497130 | H23: Advance | I23: 2025-10-15 | J23: =IF(ISSUELIST[[#This Row],[Cheque Date]]="","",IF(ISSUELIST[[#This Row],[Post Date]]>ISSUELIST[[#This Row],[Cheque Date]],"INVALID DATE",IF(ISSUELIST[[#This Row],[Cheque Date]]-TODAY()>0,ISSUELIST[[#This Row],[Cheque Date]]-TODAY()&" Days to go",IF(ISSUELIST[[#This Row],[Cheque Date]]-TODAY()=0,"TODAY","")))) -> 53 Days to go | K23: =IF(ISSUELIST[[#This Row],[Cheque Date]]="","",IF(ISSUELIST[[#This Row],[Post Date]]="","",ISSUELIST[[#This Row],[Cheque Date]]-ISSUELIST[[#This Row],[Post Date]])) -> 46 | L23: Prakash Nayak | M23: Saving A/c | N23: 922876620225 | O23: 9349568052 | P23: HDFC | Q23: HDFC0110008
B24: =IF(ISSUELIST[[#This Row],[Company Name]]="","", COUNTIF( INDEX(ISSUELIST[Company Name],1) : ISSUELIST[[#This Row],[Company Name]], "<>" ) ) -> 18 | C24: 2025-11-14 | D24: Maa Kali Jewellery | E24: 46759 | F24: A/c Payee | G24: 563382 | H24: Advance | I24: 2025-11-01 | J24: =IF(ISSUELIST[[#This Row],[Cheque Date]]="","",IF(ISSUELIST[[#This Row],[Post Date]]>ISSUELIST[[#This Row],[Cheque Date]],"INVALID DATE",IF(ISSUELIST[[#This Row],[Cheque Date]]-TODAY()>0,ISSUELIST[[#This Row],[Cheque Date]]-TODAY()&" Days to go",IF(ISSUELIST[[#This Row],[Cheque Date]]-TODAY()=0,"TODAY","")))) -> 37 Days to go | K24: =IF(ISSUELIST[[#This Row],[Cheque Date]]="","",IF(ISSUELIST[[#This Row],[Post Date]]="","",ISSUELIST[[#This Row],[Cheque Date]]-ISSUELIST[[#This Row],[Post Date]])) -> 13 | L24: Deepak Sharma | M24: Saving A/c | N24: 504690285033 | O24: 9203634812 | P24: ICICI | Q24: ICIC0842137
B25: =IF(ISSUELIST[[#This Row],[Company Name]]="","", COUNTIF( INDEX(ISSUELIST[Company Name],1) : ISSUELIST[[#This Row],[Company Name]], "<>" ) ) -> 19 | C25: 2025-11-24 | D25: Sunrise Bakery | E25: 43127 | F25: A/c Payee | G25: 592352 | H25: Payment | I25: 2025-10-31 | J25: =IF(ISSUELIST[[#This Row],[Cheque Date]]="","",IF(ISSUELIST[[#This Row],[Post Date]]>ISSUELIST[[#This Row],[Cheque Date]],"INVALID DATE",IF(ISSUELIST[[#This Row],[Cheque Date]]-TODAY()>0,ISSUELIST[[#This Row],[Cheque Date]]-TODAY()&" Days to go",IF(ISSUELIST[[#This Row],[Cheque Date]]-TODAY()=0,"TODAY","")))) -> 47 Days to go | K25: =IF(ISSUELIST[[#This Row],[Cheque Date]]="","",IF(ISSUELIST[[#This Row],[Post Date]]="","",ISSUELIST[[#This Row],[Cheque Date]]-ISSUELIST[[#This Row],[Post Date]])) -> 24 | L25: Ashok Mehta | M25: Saving A/c | N25: 376618139381 | O25: 9856204599 | P25: HDFC | Q25: HDFC0539045
B26: =IF(ISSUELIST[[#This Row],[Company Name]]="","", COUNTIF( INDEX(ISSUELIST[Company Name],1) : ISSUELIST[[#This Row],[Company Name]], "<>" ) ) -> 20 | C26: 2025-11-30 | D26: New Fashion Corner | E26: 6261 | F26: A/c Payee | G26: 423371 | H26: Bill | I26: 2025-10-31 | J26: =IF(ISSUELIST[[#This Row],[Cheque Date]]="","",IF(ISSUELIST[[#This Row],[Post Date]]>ISSUELIST[[#This Row],[Cheque Date]],"INVALID DATE",IF(ISSUELIST[[#This Row],[Cheque Date]]-TODAY()>0,ISSUELIST[[#This Row],[Cheque Date]]-TODAY()&" Days to go",IF(ISSUELIST[[#This Row],[Cheque Date]]-TODAY()=0,"TODAY","")))) -> 53 Days to go | K26: =IF(ISSUELIST[[#This Row],[Cheque Date]]="","",IF(ISSUELIST[[#This Row],[Post Date]]="","",ISSUELIST[[#This Row],[Cheque Date]]-ISSUELIST[[#This Row],[Post Date]])) -> 30 | L26: Sanjay Sahu | M26: Saving A/c | N26: 890492307340 | O26: 9287909482 | P26: SBI | Q26: SBI0109729
B27: =IF(ISSUELIST[[#This Row],[Company Name]]="","", COUNTIF( INDEX(ISSUELIST[Company Name],1) : ISSUELIST[[#This Row],[Company Name]], "<>" ) ) -> 21 | C27: 2025-11-21 | D27: Krishna Dairy | E27: 37154 | F27: A/c Payee | G27: 981234 | H27: Payment | I27: 2025-10-29 | J27: =IF(ISSUELIST[[#This Row],[Cheque Date]]="","",IF(ISSUELIST[[#This Row],[Post Date]]>ISSUELIST[[#This Row],[Cheque Date]],"INVALID DATE",IF(ISSUELIST[[#This Row],[Cheque Date]]-TODAY()>0,ISSUELIST[[#This Row],[Cheque Date]]-TODAY()&" Days to go",IF(ISSUELIST[[#This Row],[Cheque Date]]-TODAY()=0,"TODAY","")))) -> 44 Days to go | K27: =IF(ISSUELIST[[#This Row],[Cheque Date]]="","",IF(ISSUELIST[[#This Row],[Post Date]]="","",ISSUELIST[[#This Row],[Cheque Date]]-ISSUELIST[[#This Row],[Post Date]])) -> 23 | L27: Sanjay Sahu | M27: Saving A/c | N27: 494665316042 | O27: 9245245143 | P27: HDFC | Q27: HDFC0699601
B28: =IF(ISSUELIST[[#This Row],[Company Name]]="","", COUNTIF( INDEX(ISSUELIST[Company Name],1) : ISSUELIST[[#This Row],[Company Name]], "<>" ) ) -> 22 | C28: 2025-11-25 | D28: Classic Tailors | E28: 48462 | F28: A/c Payee | G28: 238257 | H28: Loan | I28: 2025-10-12 | J28: =IF(ISSUELIST[[#This Row],[Cheque Date]]="","",IF(ISSUELIST[[#This Row],[Post Date]]>ISSUELIST[[#This Row],[Cheque Date]],"INVALID DATE",IF(ISSUELIST[[#This Row],[Cheque Date]]-TODAY()>0,ISSUELIST[[#This Row],[Cheque Date]]-TODAY()&" Days to go",IF(ISSUELIST[[#This Row],[Cheque Date]]-TODAY()=0,"TODAY","")))) -> 48 Days to go | K28: =IF(ISSUELIST[[#This Row],[Cheque Date]]="","",IF(ISSUELIST[[#This Row],[Post Date]]="","",ISSUELIST[[#This Row],[Cheque Date]]-ISSUELIST[[#This Row],[Post Date]])) -> 44 | L28: Sanjay Sahu | M28: Saving A/c | N28: 890492307340 | O28: 9287909482 | P28: PNB | Q28: PNB0551969
B29: =IF(ISSUELIST[[#This Row],[Company Name]]="","", COUNTIF( INDEX(ISSUELIST[Company Name],1) : ISSUELIST[[#This Row],[Company Name]], "<>" ) ) -> 23 | C29: 2025-11-09 | D29: Maa Kali Jewellery | E29: 18521 | F29: A/c Payee | G29: 871373 | H29: Misc | I29: 2025-10-09 | J29: =IF(ISSUELIST[[#This Row],[Cheque Date]]="","",IF(ISSUELIST[[#This Row],[Post Date]]>ISSUELIST[[#This Row],[Cheque Date]],"INVALID DATE",IF(ISSUELIST[[#This Row],[Cheque Date]]-TODAY()>0,ISSUELIST[[#This Row],[Cheque Date]]-TODAY()&" Days to go",IF(ISSUELIST[[#This Row],[Cheque Date]]-TODAY()=0,"TODAY","")))) -> 32 Days to go | K29: =IF(ISSUELIST[[#This Row],[Cheque Date]]="","",IF(ISSUELIST[[#This Row],[Post Date]]="","",ISSUELIST[[#This Row],[Cheque Date]]-ISSUELIST[[#This Row],[Post Date]])) -> 31 | L29: Deepak Sharma | M29: Saving A/c | N29: 504690285033 | O29: 9203634812
B30: =IF(ISSUELIST[[#This Row],[Company Name]]="","", COUNTIF( INDEX(ISSUELIST[Company Name],1) : ISSUELIST[[#This Row],[Company Name]], "<>" ) ) -> 24 | C30: 2025-11-27 | D30: Shanti Hardware | E30: 29878 | F30: A/c Payee | G30: 194520 | H30: Advance | I30: 2025-10-26 | J30: =IF(ISSUELIST[[#This Row],[Cheque Date]]="","",IF(ISSUELIST[[#This Row],[Post Date]]>ISSUELIST[[#This Row],[Cheque Date]],"INVALID DATE",IF(ISSUELIST[[#This Row],[Cheque Date]]-TODAY()>0,ISSUELIST[[#This Row],[Cheque Date]]-TODAY()&" Days to go",IF(ISSUELIST[[#This Row],[Cheque Date]]-TODAY()=0,"TODAY","")))) -> 50 Days to go | K30: =IF(ISSUELIST[[#This Row],[Cheque Date]]="","",IF(ISSUELIST[[#This Row],[Post Date]]="","",ISSUELIST[[#This Row],[Cheque Date]]-ISSUELIST[[#This Row],[Post Date]])) -> 32 | L30: Bablu Nayak | M30: Current A/c | N30: 219365145252 | O30: 9435262058
B31: =IF(ISSUELIST[[#This Row],[Company Name]]="","", COUNTIF( INDEX(ISSUELIST[Company Name],1) : ISSUELIST[[#This Row],[Company Name]], "<>" ) ) -> 25 | C31: 2025-11-15 | D31: DFHFJM | E31: 24124 | F31: A/c Payee | G31: 551080 | H31: Advance | I31: 2025-10-29 | J31: =IF(ISSUELIST[[#This Row],[Cheque Date]]="","",IF(ISSUELIST[[#This Row],[Post Date]]>ISSUELIST[[#This Row],[Cheque Date]],"INVALID DATE",IF(ISSUELIST[[#This Row],[Cheque Date]]-TODAY()>0,ISSUELIST[[#This Row],[Cheque Date]]-TODAY()&" Days to go",IF(ISSUELIST[[#This Row],[Cheque Date]]-TODAY()=0,"TODAY","")))) -> 38 Days to go | K31: =IF(ISSUELIST[[#This Row],[Cheque Date]]="","",IF(ISSUELIST[[#This Row],[Post Date]]="","",ISSUELIST[[#This Row],[Cheque Date]]-ISSUELIST[[#This Row],[Post Date]])) -> 17 | L31: Sanjay Sahu | M31: Saving A/c | N31: 890492307340 | O31: 9287909482
B32: =IF(ISSUELIST[[#This Row],[Company Name]]="","", COUNTIF( INDEX(ISSUELIST[Company Name],1) : ISSUELIST[[#This Row],[Company Name]], "<>" ) ) -> 26 | C32: 2025-12-01 | D32: Jagannath Fruits & Juice | E32: 44292 | F32: A/c Payee | G32: 770832 | H32: Loan | I32: 2025-10-25 | J32: =IF(ISSUELIST[[#This Row],[Cheque Date]]="","",IF(ISSUELIST[[#This Row],[Post Date]]>ISSUELIST[[#This Row],[Cheque Date]],"INVALID DATE",IF(ISSUELIST[[#This Row],[Cheque Date]]-TODAY()>0,ISSUELIST[[#This Row],[Cheque Date]]-TODAY()&" Days to go",IF(ISSUELIST[[#This Row],[Cheque Date]]-TODAY()=0,"TODAY","")))) -> 54 Days to go | K32: =IF(ISSUELIST[[#This Row],[Cheque Date]]="","",IF(ISSUELIST[[#This Row],[Post Date]]="","",ISSUELIST[[#This Row],[Cheque Date]]-ISSUELIST[[#This Row],[Post Date]])) -> 37 | L32: Binod Das | M32: Current A/c | N32: 177859522501 | O32: 9842791642
B33: =IF(ISSUELIST[[#This Row],[Company Name]]="","", COUNTIF( INDEX(ISSUELIST[Company Name],1) : ISSUELIST[[#This Row],[Company Name]], "<>" ) ) -> 27 | C33: 2025-11-15 | D33: Classic Tailors | E33: 32129 | F33: A/c Payee | G33: 996811 | H33: Payment | I33: 2025-11-01 | J33: =IF(ISSUELIST[[#This Row],[Cheque Date]]="","",IF(ISSUELIST[[#This Row],[Post Date]]>ISSUELIST[[#This Row],[Cheque Date]],"INVALID DATE",IF(ISSUELIST[[#This Row],[Cheque Date]]-TODAY()>0,ISSUELIST[[#This Row],[Cheque Date]]-TODAY()&" Days to go",IF(ISSUELIST[[#This Row],[Cheque Date]]-TODAY()=0,"TODAY","")))) -> 38 Days to go | K33: =IF(ISSUELIST[[#This Row],[Cheque Date]]="","",IF(ISSUELIST[[#This Row],[Post Date]]="","",ISSUELIST[[#This Row],[Cheque Date]]-ISSUELIST[[#This Row],[Post Date]])) -> 14 | L33: Ranjan Rout | M33: Current A/c | N33: 271449344387 | O33: 9043419864
B34: =IF(ISSUELIST[[#This Row],[Company Name]]="","", COUNTIF( INDEX(ISSUELIST[Company Name],1) : ISSUELIST[[#This Row],[Company Name]], "<>" ) ) -> 28 | C34: 2025-11-15 | D34: Krishna Dairy | E34: 16567 | F34: A/c Payee | G34: 675400 | H34: Loan | I34: 2025-10-27 | J34: =IF(ISSUELIST[[#This Row],[Cheque Date]]="","",IF(ISSUELIST[[#This Row],[Post Date]]>ISSUELIST[[#This Row],[Cheque Date]],"INVALID DATE",IF(ISSUELIST[[#This Row],[Cheque Date]]-TODAY()>0,ISSUELIST[[#This Row],[Cheque Date]]-TODAY()&" Days to go",IF(ISSUELIST[[#This Row],[Cheque Date]]-TODAY()=0,"TODAY","")))) -> 38 Days to go | K34: =IF(ISSUELIST[[#This Row],[Cheque Date]]="","",IF(ISSUELIST[[#This Row],[Post Date]]="","",ISSUELIST[[#This Row],[Cheque Date]]-ISSUELIST[[#This Row],[Post Date]])) -> 19 | L34: Mahesh Soni | M34: Current A/c | N34: 165408911385 | O34: 9067155384
B35: =IF(ISSUELIST[[#This Row],[Company Name]]="","", COUNTIF( INDEX(ISSUELIST[Company Name],1) : ISSUELIST[[#This Row],[Company Name]], "<>" ) ) -> 29 | C35: 2025-11-09 | D35: New Fashion Corner | E35: 5490 | F35: A/c Payee | G35: 614197 | H35: Advance | I35: 2025-10-15 | J35: =IF(ISSUELIST[[#This Row],[Cheque Date]]="","",IF(ISSUELIST[[#This Row],[Post Date]]>ISSUELIST[[#This Row],[Cheque Date]],"INVALID DATE",IF(ISSUELIST[[#This Row],[Cheque Date]]-TODAY()>0,ISSUELIST[[#This Row],[Cheque Date]]-TODAY()&" Days to go",IF(ISSUELIST[[#This Row],[Cheque Date]]-TODAY()=0,"TODAY","")))) -> 32 Days to go | K35: =IF(ISSUELIST[[#This Row],[Cheque Date]]="","",IF(ISSUELIST[[#This Row],[Post Date]]="","",ISSUELIST[[#This Row],[Cheque Date]]-ISSUELIST[[#This Row],[Post Date]])) -> 25 | L35: Pawan Singh | M35: Current A/c | N35: 270014986565 | O35: 9100268580
B36: =IF(ISSUELIST[[#This Row],[Company Name]]="","", COUNTIF( INDEX(ISSUELIST[Company Name],1) : ISSUELIST[[#This Row],[Company Name]], "<>" ) ) -> 30 | C36: 2025-11-11 | D36: City Supermarket | E36: 45602 | F36: A/c Payee | G36: 813586 | H36: Misc | I36: 2025-10-31 | J36: =IF(ISSUELIST[[#This Row],[Cheque Date]]="","",IF(ISSUELIST[[#This Row],[Post Date]]>ISSUELIST[[#This Row],[Cheque Date]],"INVALID DATE",IF(ISSUELIST[[#This Row],[Cheque Date]]-TODAY()>0,ISSUELIST[[#This Row],[Cheque Date]]-TODAY()&" Days to go",IF(ISSUELIST[[#This Row],[Cheque Date]]-TODAY()=0,"TODAY","")))) -> 34 Days to go | K36: =IF(ISSUELIST[[#This Row],[Cheque Date]]="","",IF(ISSUELIST[[#This Row],[Post Date]]="","",ISSUELIST[[#This Row],[Cheque Date]]-ISSUELIST[[#This Row],[Post Date]])) -> 11 | L36: Rajesh Gupta | M36: Current A/c | N36: 173009287805 | O36: 9957350517
B37: =IF(ISSUELIST[[#This Row],[Company Name]]="","", COUNTIF( INDEX(ISSUELIST[Company Name],1) : ISSUELIST[[#This Row],[Company Name]], "<>" ) ) -> 31 | C37: 2025-11-30 | D37: Modern Footwear | E37: 6278 | F37: A/c Payee | G37: 439622 | H37: Payment | I37: 2025-10-15 | J37: =IF(ISSUELIST[[#This Row],[Cheque Date]]="","",IF(ISSUELIST[[#This Row],[Post Date]]>ISSUELIST[[#This Row],[Cheque Date]],"INVALID DATE",IF(ISSUELIST[[#This Row],[Cheque Date]]-TODAY()>0,ISSUELIST[[#This Row],[Cheque Date]]-TODAY()&" Days to go",IF(ISSUELIST[[#This Row],[Cheque Date]]-TODAY()=0,"TODAY","")))) -> 53 Days to go | K37: =IF(ISSUELIST[[#This Row],[Cheque Date]]="","",IF(ISSUELIST[[#This Row],[Post Date]]="","",ISSUELIST[[#This Row],[Cheque Date]]-ISSUELIST[[#This Row],[Post Date]])) -> 46 | L37: Trilochan Sahu | M37: Saving A/c | N37: 661584326028 | O37: 9511536109
B38: =IF(ISSUELIST[[#This Row],[Company Name]]="","", COUNTIF( INDEX(ISSUELIST[Company Name],1) : ISSUELIST[[#This Row],[Company Name]], "<>" ) ) -> 32 | C38: 2025-11-23 | D38: Krishna Dairy | E38: 44418 | F38: A/c Payee | G38: 957667 | H38: Loan | I38: 2025-11-01 | J38: =IF(ISSUELIST[[#This Row],[Cheque Date]]="","",IF(ISSUELIST[[#This Row],[Post Date]]>ISSUELIST[[#This Row],[Cheque Date]],"INVALID DATE",IF(ISSUELIST[[#This Row],[Cheque Date]]-TODAY()>0,ISSUELIST[[#This Row],[Cheque Date]]-TODAY()&" Days to go",IF(ISSUELIST[[#This Row],[Cheque Date]]-TODAY()=0,"TODAY","")))) -> 46 Days to go | K38: =IF(ISSUELIST[[#This Row],[Cheque Date]]="","",IF(ISSUELIST[[#This Row],[Post Date]]="","",ISSUELIST[[#This Row],[Cheque Date]]-ISSUELIST[[#This Row],[Post Date]])) -> 22 | L38: Gopal Das | M38: Saving A/c | N38: 746157484888 | O38: 9143621409
B39: =IF(ISSUELIST[[#This Row],[Company Name]]="","", COUNTIF( INDEX(ISSUELIST[Company Name],1) : ISSUELIST[[#This Row],[Company Name]], "<>" ) ) -> 33 | C39: 2025-11-16 | D39: DFHFJM | E39: 19765 | F39: A/c Payee | G39: 914030 | H39: Advance | I39: 2025-10-20 | J39: =IF(ISSUELIST[[#This Row],[Cheque Date]]="","",IF(ISSUELIST[[#This Row],[Post Date]]>ISSUELIST[[#This Row],[Cheque Date]],"INVALID DATE",IF(ISSUELIST[[#This Row],[Cheque Date]]-TODAY()>0,ISSUELIST[[#This Row],[Cheque Date]]-TODAY()&" Days to go",IF(ISSUELIST[[#This Row],[Cheque Date]]-TODAY()=0,"TODAY","")))) -> 39 Days to go | K39: =IF(ISSUELIST[[#This Row],[Cheque Date]]="","",IF(ISSUELIST[[#This Row],[Post Date]]="","",ISSUELIST[[#This Row],[Cheque Date]]-ISSUELIST[[#This Row],[Post Date]])) -> 27 | L39: Mahesh Soni | M39: Current A/c | N39: 431164319933 | O39: 9331327609
B40: =IF(ISSUELIST[[#This Row],[Company Name]]="","", COUNTIF( INDEX(ISSUELIST[Company Name],1) : ISSUELIST[[#This Row],[Company Name]], "<>" ) ) -> 34 | C40: 2025-11-28 | D40: Shanti Hardware | E40: 43037 | F40: A/c Payee | G40: 335222 | H40: Payment | I40: 2025-10-22 | J40: =IF(ISSUELIST[[#This Row],[Cheque Date]]="","",IF(ISSUELIST[[#This Row],[Post Date]]>ISSUELIST[[#This Row],[Cheque Date]],"INVALID DATE",IF(ISSUELIST[[#This Row],[Cheque Date]]-TODAY()>0,ISSUELIST[[#This Row],[Cheque Date]]-TODAY()&" Days to go",IF(ISSUELIST[[#This Row],[Cheque Date]]-TODAY()=0,"TODAY","")))) -> 51 Days to go | K40: =IF(ISSUELIST[[#This Row],[Cheque Date]]="","",IF(ISSUELIST[[#This Row],[Post Date]]="","",ISSUELIST[[#This Row],[Cheque Date]]-ISSUELIST[[#This Row],[Post Date]])) -> 37 | L40: Pawan Singh | M40: Saving A/c | N40: 390793966518 | O40: 9008473344
B41: =IF(ISSUELIST[[#This Row],[Company Name]]="","", COUNTIF( INDEX(ISSUELIST[Company Name],1) : ISSUELIST[[#This Row],[Company Name]], "<>" ) ) -> 35 | C41: 2025-12-01 | D41: New Fashion Corner | E41: 10156 | F41: A/c Payee | G41: 120560 | H41: Bill | I41: 2025-10-13 | J41: =IF(ISSUELIST[[#This Row],[Cheque Date]]="","",IF(ISSUELIST[[#This Row],[Post Date]]>ISSUELIST[[#This Row],[Cheque Date]],"INVALID DATE",IF(ISSUELIST[[#This Row],[Cheque Date]]-TODAY()>0,ISSUELIST[[#This Row],[Cheque Date]]-TODAY()&" Days to go",IF(ISSUELIST[[#This Row],[Cheque Date]]-TODAY()=0,"TODAY","")))) -> 54 Days to go | K41: =IF(ISSUELIST[[#This Row],[Cheque Date]]="","",IF(ISSUELIST[[#This Row],[Post Date]]="","",ISSUELIST[[#This Row],[Cheque Date]]-ISSUELIST[[#This Row],[Post Date]])) -> 49 | L41: Binod Das | M41: Current A/c | N41: 232532493529 | O41: 9682355810
B42: =IF(ISSUELIST[[#This Row],[Company Name]]="","", COUNTIF( INDEX(ISSUELIST[Company Name],1) : ISSUELIST[[#This Row],[Company Name]], "<>" ) ) -> 36 | C42: 2025-11-20 | D42: Sai Stationery | E42: 44800 | F42: A/c Payee | G42: 933225 | H42: Bill | I42: 2025-10-31 | J42: =IF(ISSUELIST[[#This Row],[Cheque Date]]="","",IF(ISSUELIST[[#This Row],[Post Date]]>ISSUELIST[[#This Row],[Cheque Date]],"INVALID DATE",IF(ISSUELIST[[#This Row],[Cheque Date]]-TODAY()>0,ISSUELIST[[#This Row],[Cheque Date]]-TODAY()&" Days to go",IF(ISSUELIST[[#This Row],[Cheque Date]]-TODAY()=0,"TODAY","")))) -> 43 Days to go | K42: =IF(ISSUELIST[[#This Row],[Cheque Date]]="","",IF(ISSUELIST[[#This Row],[Post Date]]="","",ISSUELIST[[#This Row],[Cheque Date]]-ISSUELIST[[#This Row],[Post Date]])) -> 20 | L42: Manoj Sethi | M42: Current A/c | N42: 895879085161 | O42: 9628252659
B43: =IF(ISSUELIST[[#This Row],[Company Name]]="","", COUNTIF( INDEX(ISSUELIST[Company Name],1) : ISSUELIST[[#This Row],[Company Name]], "<>" ) ) -> 37 | C43: 2025-11-21 | D43: City Supermarket | E43: 32997 | F43: A/c Payee | G43: 379240 | H43: Payment | I43: 2025-10-10 | J43: =IF(ISSUELIST[[#This Row],[Cheque Date]]="","",IF(ISSUELIST[[#This Row],[Post Date]]>ISSUELIST[[#This Row],[Cheque Date]],"INVALID DATE",IF(ISSUELIST[[#This Row],[Cheque Date]]-TODAY()>0,ISSUELIST[[#This Row],[Cheque Date]]-TODAY()&" Days to go",IF(ISSUELIST[[#This Row],[Cheque Date]]-TODAY()=0,"TODAY","")))) -> 44 Days to go | K43: =IF(ISSUELIST[[#This Row],[Cheque Date]]="","",IF(ISSUELIST[[#This Row],[Post Date]]="","",ISSUELIST[[#This Row],[Cheque Date]]-ISSUELIST[[#This Row],[Post Date]])) -> 42 | L43: Binod Das | M43: Current A/c | N43: 579418926016 | O43: 9794979135
B44: =IF(ISSUELIST[[#This Row],[Company Name]]="","", COUNTIF( INDEX(ISSUELIST[Company Name],1) : ISSUELIST[[#This Row],[Company Name]], "<>" ) ) -> 38 | C44: 2025-11-23 | D44: Maa Kali Jewellery | E44: 32874 | F44: A/c Payee | G44: 660487 | H44: Bill | I44: 2025-10-25 | J44: =IF(ISSUELIST[[#This Row],[Cheque Date]]="","",IF(ISSUELIST[[#This Row],[Post Date]]>ISSUELIST[[#This Row],[Cheque Date]],"INVALID DATE",IF(ISSUELIST[[#This Row],[Cheque Date]]-TODAY()>0,ISSUELIST[[#This Row],[Cheque Date]]-TODAY()&" Days to go",IF(ISSUELIST[[#This Row],[Cheque Date]]-TODAY()=0,"TODAY","")))) -> 46 Days to go | K44: =IF(ISSUELIST[[#This Row],[Cheque Date]]="","",IF(ISSUELIST[[#This Row],[Post Date]]="","",ISSUELIST[[#This Row],[Cheque Date]]-ISSUELIST[[#This Row],[Post Date]])) -> 29 | L44: Pawan Singh | M44: Current A/c | N44: 270014986565 | O44: 9100268580
B45: =IF(ISSUELIST[[#This Row],[Company Name]]="","", COUNTIF( INDEX(ISSUELIST[Company Name],1) : ISSUELIST[[#This Row],[Company Name]], "<>" ) ) ->  | J45: =IF(ISSUELIST[[#This Row],[Cheque Date]]="","",IF(ISSUELIST[[#This Row],[Post Date]]>ISSUELIST[[#This Row],[Cheque Date]],"INVALID DATE",IF(ISSUELIST[[#This Row],[Cheque Date]]-TODAY()>0,ISSUELIST[[#This Row],[Cheque Date]]-TODAY()&" Days to go",IF(ISSUELIST[[#This Row],[Cheque Date]]-TODAY()=0,"TODAY","")))) ->  | K45: =IF(ISSUELIST[[#This Row],[Cheque Date]]="","",IF(ISSUELIST[[#This Row],[Post Date]]="","",ISSUELIST[[#This Row],[Cheque Date]]-ISSUELIST[[#This Row],[Post Date]])) -> 
B46: =IF(ISSUELIST[[#This Row],[Company Name]]="","", COUNTIF( INDEX(ISSUELIST[Company Name],1) : ISSUELIST[[#This Row],[Company Name]], "<>" ) ) ->  | J46: =IF(ISSUELIST[[#This Row],[Cheque Date]]="","",IF(ISSUELIST[[#This Row],[Post Date]]>ISSUELIST[[#This Row],[Cheque Date]],"INVALID DATE",IF(ISSUELIST[[#This Row],[Cheque Date]]-TODAY()>0,ISSUELIST[[#This Row],[Cheque Date]]-TODAY()&" Days to go",IF(ISSUELIST[[#This Row],[Cheque Date]]-TODAY()=0,"TODAY","")))) ->  | K46: =IF(ISSUELIST[[#This Row],[Cheque Date]]="","",IF(ISSUELIST[[#This Row],[Post Date]]="","",ISSUELIST[[#This Row],[Cheque Date]]-ISSUELIST[[#This Row],[Post Date]])) -> 
B47: =IF(ISSUELIST[[#This Row],[Company Name]]="","", COUNTIF( INDEX(ISSUELIST[Company Name],1) : ISSUELIST[[#This Row],[Company Name]], "<>" ) ) ->  | J47: =IF(ISSUELIST[[#This Row],[Cheque Date]]="","",IF(ISSUELIST[[#This Row],[Post Date]]>ISSUELIST[[#This Row],[Cheque Date]],"INVALID DATE",IF(ISSUELIST[[#This Row],[Cheque Date]]-TODAY()>0,ISSUELIST[[#This Row],[Cheque Date]]-TODAY()&" Days to go",IF(ISSUELIST[[#This Row],[Cheque Date]]-TODAY()=0,"TODAY","")))) ->  | K47: =IF(ISSUELIST[[#This Row],[Cheque Date]]="","",IF(ISSUELIST[[#This Row],[Post Date]]="","",ISSUELIST[[#This Row],[Cheque Date]]-ISSUELIST[[#This Row],[Post Date]])) -> 
B48: =IF(ISSUELIST[[#This Row],[Company Name]]="","", COUNTIF( INDEX(ISSUELIST[Company Name],1) : ISSUELIST[[#This Row],[Company Name]], "<>" ) ) ->  | J48: =IF(ISSUELIST[[#This Row],[Cheque Date]]="","",IF(ISSUELIST[[#This Row],[Post Date]]>ISSUELIST[[#This Row],[Cheque Date]],"INVALID DATE",IF(ISSUELIST[[#This Row],[Cheque Date]]-TODAY()>0,ISSUELIST[[#This Row],[Cheque Date]]-TODAY()&" Days to go",IF(ISSUELIST[[#This Row],[Cheque Date]]-TODAY()=0,"TODAY","")))) ->  | K48: =IF(ISSUELIST[[#This Row],[Cheque Date]]="","",IF(ISSUELIST[[#This Row],[Post Date]]="","",ISSUELIST[[#This Row],[Cheque Date]]-ISSUELIST[[#This Row],[Post Date]])) -> 
B49: =IF(ISSUELIST[[#This Row],[Company Name]]="","", COUNTIF( INDEX(ISSUELIST[Company Name],1) : ISSUELIST[[#This Row],[Company Name]], "<>" ) ) ->  | J49: =IF(ISSUELIST[[#This Row],[Cheque Date]]="","",IF(ISSUELIST[[#This Row],[Post Date]]>ISSUELIST[[#This Row],[Cheque Date]],"INVALID DATE",IF(ISSUELIST[[#This Row],[Cheque Date]]-TODAY()>0,ISSUELIST[[#This Row],[Cheque Date]]-TODAY()&" Days to go",IF(ISSUELIST[[#This Row],[Cheque Date]]-TODAY()=0,"TODAY","")))) ->  | K49: =IF(ISSUELIST[[#This Row],[Cheque Date]]="","",IF(ISSUELIST[[#This Row],[Post Date]]="","",ISSUELIST[[#This Row],[Cheque Date]]-ISSUELIST[[#This Row],[Post Date]])) -> 
B50: =IF(ISSUELIST[[#This Row],[Company Name]]="","", COUNTIF( INDEX(ISSUELIST[Company Name],1) : ISSUELIST[[#This Row],[Company Name]], "<>" ) ) ->  | J50: =IF(ISSUELIST[[#This Row],[Cheque Date]]="","",IF(ISSUELIST[[#This Row],[Post Date]]>ISSUELIST[[#This Row],[Cheque Date]],"INVALID DATE",IF(ISSUELIST[[#This Row],[Cheque Date]]-TODAY()>0,ISSUELIST[[#This Row],[Cheque Date]]-TODAY()&" Days to go",IF(ISSUELIST[[#This Row],[Cheque Date]]-TODAY()=0,"TODAY","")))) ->  | K50: =IF(ISSUELIST[[#This Row],[Cheque Date]]="","",IF(ISSUELIST[[#This Row],[Post Date]]="","",ISSUELIST[[#This Row],[Cheque Date]]-ISSUELIST[[#This Row],[Post Date]])) -> 
B51: =IF(ISSUELIST[[#This Row],[Company Name]]="","", COUNTIF( INDEX(ISSUELIST[Company Name],1) : ISSUELIST[[#This Row],[Company Name]], "<>" ) ) ->  | J51: =IF(ISSUELIST[[#This Row],[Cheque Date]]="","",IF(ISSUELIST[[#This Row],[Post Date]]>ISSUELIST[[#This Row],[Cheque Date]],"INVALID DATE",IF(ISSUELIST[[#This Row],[Cheque Date]]-TODAY()>0,ISSUELIST[[#This Row],[Cheque Date]]-TODAY()&" Days to go",IF(ISSUELIST[[#This Row],[Cheque Date]]-TODAY()=0,"TODAY","")))) ->  | K51: =IF(ISSUELIST[[#This Row],[Cheque Date]]="","",IF(ISSUELIST[[#This Row],[Post Date]]="","",ISSUELIST[[#This Row],[Cheque Date]]-ISSUELIST[[#This Row],[Post Date]])) -> 
B52: =IF(ISSUELIST[[#This Row],[Company Name]]="","", COUNTIF( INDEX(ISSUELIST[Company Name],1) : ISSUELIST[[#This Row],[Company Name]], "<>" ) ) ->  | J52: =IF(ISSUELIST[[#This Row],[Cheque Date]]="","",IF(ISSUELIST[[#This Row],[Post Date]]>ISSUELIST[[#This Row],[Cheque Date]],"INVALID DATE",IF(ISSUELIST[[#This Row],[Cheque Date]]-TODAY()>0,ISSUELIST[[#This Row],[Cheque Date]]-TODAY()&" Days to go",IF(ISSUELIST[[#This Row],[Cheque Date]]-TODAY()=0,"TODAY","")))) ->  | K52: =IF(ISSUELIST[[#This Row],[Cheque Date]]="","",IF(ISSUELIST[[#This Row],[Post Date]]="","",ISSUELIST[[#This Row],[Cheque Date]]-ISSUELIST[[#This Row],[Post Date]])) -> 
B53: =IF(ISSUELIST[[#This Row],[Company Name]]="","", COUNTIF( INDEX(ISSUELIST[Company Name],1) : ISSUELIST[[#This Row],[Company Name]], "<>" ) ) ->  | J53: =IF(ISSUELIST[[#This Row],[Cheque Date]]="","",IF(ISSUELIST[[#This Row],[Post Date]]>ISSUELIST[[#This Row],[Cheque Date]],"INVALID DATE",IF(ISSUELIST[[#This Row],[Cheque Date]]-TODAY()>0,ISSUELIST[[#This Row],[Cheque Date]]-TODAY()&" Days to go",IF(ISSUELIST[[#This Row],[Cheque Date]]-TODAY()=0,"TODAY","")))) ->  | K53: =IF(ISSUELIST[[#This Row],[Cheque Date]]="","",IF(ISSUELIST[[#This Row],[Post Date]]="","",ISSUELIST[[#This Row],[Cheque Date]]-ISSUELIST[[#This Row],[Post Date]])) -> 
B54: =IF(ISSUELIST[[#This Row],[Company Name]]="","", COUNTIF( INDEX(ISSUELIST[Company Name],1) : ISSUELIST[[#This Row],[Company Name]], "<>" ) ) ->  | J54: =IF(ISSUELIST[[#This Row],[Cheque Date]]="","",IF(ISSUELIST[[#This Row],[Post Date]]>ISSUELIST[[#This Row],[Cheque Date]],"INVALID DATE",IF(ISSUELIST[[#This Row],[Cheque Date]]-TODAY()>0,ISSUELIST[[#This Row],[Cheque Date]]-TODAY()&" Days to go",IF(ISSUELIST[[#This Row],[Cheque Date]]-TODAY()=0,"TODAY","")))) ->  | K54: =IF(ISSUELIST[[#This Row],[Cheque Date]]="","",IF(ISSUELIST[[#This Row],[Post Date]]="","",ISSUELIST[[#This Row],[Cheque Date]]-ISSUELIST[[#This Row],[Post Date]])) -> 
B55: =IF(ISSUELIST[[#This Row],[Company Name]]="","", COUNTIF( INDEX(ISSUELIST[Company Name],1) : ISSUELIST[[#This Row],[Company Name]], "<>" ) ) ->  | J55: =IF(ISSUELIST[[#This Row],[Cheque Date]]="","",IF(ISSUELIST[[#This Row],[Post Date]]>ISSUELIST[[#This Row],[Cheque Date]],"INVALID DATE",IF(ISSUELIST[[#This Row],[Cheque Date]]-TODAY()>0,ISSUELIST[[#This Row],[Cheque Date]]-TODAY()&" Days to go",IF(ISSUELIST[[#This Row],[Cheque Date]]-TODAY()=0,"TODAY","")))) ->  | K55: =IF(ISSUELIST[[#This Row],[Cheque Date]]="","",IF(ISSUELIST[[#This Row],[Post Date]]="","",ISSUELIST[[#This Row],[Cheque Date]]-ISSUELIST[[#This Row],[Post Date]])) -> 
B56: =IF(ISSUELIST[[#This Row],[Company Name]]="","", COUNTIF( INDEX(ISSUELIST[Company Name],1) : ISSUELIST[[#This Row],[Company Name]], "<>" ) ) ->  | J56: =IF(ISSUELIST[[#This Row],[Cheque Date]]="","",IF(ISSUELIST[[#This Row],[Post Date]]>ISSUELIST[[#This Row],[Cheque Date]],"INVALID DATE",IF(ISSUELIST[[#This Row],[Cheque Date]]-TODAY()>0,ISSUELIST[[#This Row],[Cheque Date]]-TODAY()&" Days to go",IF(ISSUELIST[[#This Row],[Cheque Date]]-TODAY()=0,"TODAY","")))) ->  | K56: =IF(ISSUELIST[[#This Row],[Cheque Date]]="","",IF(ISSUELIST[[#This Row],[Post Date]]="","",ISSUELIST[[#This Row],[Cheque Date]]-ISSUELIST[[#This Row],[Post Date]])) -> 
B57: =IF(ISSUELIST[[#This Row],[Company Name]]="","", COUNTIF( INDEX(ISSUELIST[Company Name],1) : ISSUELIST[[#This Row],[Company Name]], "<>" ) ) ->  | J57: =IF(ISSUELIST[[#This Row],[Cheque Date]]="","",IF(ISSUELIST[[#This Row],[Post Date]]>ISSUELIST[[#This Row],[Cheque Date]],"INVALID DATE",IF(ISSUELIST[[#This Row],[Cheque Date]]-TODAY()>0,ISSUELIST[[#This Row],[Cheque Date]]-TODAY()&" Days to go",IF(ISSUELIST[[#This Row],[Cheque Date]]-TODAY()=0,"TODAY","")))) ->  | K57: =IF(ISSUELIST[[#This Row],[Cheque Date]]="","",IF(ISSUELIST[[#This Row],[Post Date]]="","",ISSUELIST[[#This Row],[Cheque Date]]-ISSUELIST[[#This Row],[Post Date]])) -> 
B58: =IF(ISSUELIST[[#This Row],[Company Name]]="","", COUNTIF( INDEX(ISSUELIST[Company Name],1) : ISSUELIST[[#This Row],[Company Name]], "<>" ) ) ->  | J58: =IF(ISSUELIST[[#This Row],[Cheque Date]]="","",IF(ISSUELIST[[#This Row],[Post Date]]>ISSUELIST[[#This Row],[Cheque Date]],"INVALID DATE",IF(ISSUELIST[[#This Row],[Cheque Date]]-TODAY()>0,ISSUELIST[[#This Row],[Cheque Date]]-TODAY()&" Days to go",IF(ISSUELIST[[#This Row],[Cheque Date]]-TODAY()=0,"TODAY","")))) ->  | K58: =IF(ISSUELIST[[#This Row],[Cheque Date]]="","",IF(ISSUELIST[[#This Row],[Post Date]]="","",ISSUELIST[[#This Row],[Cheque Date]]-ISSUELIST[[#This Row],[Post Date]])) -> 
B59: =IF(ISSUELIST[[#This Row],[Company Name]]="","", COUNTIF( INDEX(ISSUELIST[Company Name],1) : ISSUELIST[[#This Row],[Company Name]], "<>" ) ) ->  | J59: =IF(ISSUELIST[[#This Row],[Cheque Date]]="","",IF(ISSUELIST[[#This Row],[Post Date]]>ISSUELIST[[#This Row],[Cheque Date]],"INVALID DATE",IF(ISSUELIST[[#This Row],[Cheque Date]]-TODAY()>0,ISSUELIST[[#This Row],[Cheque Date]]-TODAY()&" Days to go",IF(ISSUELIST[[#This Row],[Cheque Date]]-TODAY()=0,"TODAY","")))) ->  | K59: =IF(ISSUELIST[[#This Row],[Cheque Date]]="","",IF(ISSUELIST[[#This Row],[Post Date]]="","",ISSUELIST[[#This Row],[Cheque Date]]-ISSUELIST[[#This Row],[Post Date]])) -> 
B60: =IF(ISSUELIST[[#This Row],[Company Name]]="","", COUNTIF( INDEX(ISSUELIST[Company Name],1) : ISSUELIST[[#This Row],[Company Name]], "<>" ) ) ->  | J60: =IF(ISSUELIST[[#This Row],[Cheque Date]]="","",IF(ISSUELIST[[#This Row],[Post Date]]>ISSUELIST[[#This Row],[Cheque Date]],"INVALID DATE",IF(ISSUELIST[[#This Row],[Cheque Date]]-TODAY()>0,ISSUELIST[[#This Row],[Cheque Date]]-TODAY()&" Days to go",IF(ISSUELIST[[#This Row],[Cheque Date]]-TODAY()=0,"TODAY","")))) ->  | K60: =IF(ISSUELIST[[#This Row],[Cheque Date]]="","",IF(ISSUELIST[[#This Row],[Post Date]]="","",ISSUELIST[[#This Row],[Cheque Date]]-ISSUELIST[[#This Row],[Post Date]])) -> 
B61: =IF(ISSUELIST[[#This Row],[Company Name]]="","", COUNTIF( INDEX(ISSUELIST[Company Name],1) : ISSUELIST[[#This Row],[Company Name]], "<>" ) ) ->  | J61: =IF(ISSUELIST[[#This Row],[Cheque Date]]="","",IF(ISSUELIST[[#This Row],[Post Date]]>ISSUELIST[[#This Row],[Cheque Date]],"INVALID DATE",IF(ISSUELIST[[#This Row],[Cheque Date]]-TODAY()>0,ISSUELIST[[#This Row],[Cheque Date]]-TODAY()&" Days to go",IF(ISSUELIST[[#This Row],[Cheque Date]]-TODAY()=0,"TODAY","")))) ->  | K61: =IF(ISSUELIST[[#This Row],[Cheque Date]]="","",IF(ISSUELIST[[#This Row],[Post Date]]="","",ISSUELIST[[#This Row],[Cheque Date]]-ISSUELIST[[#This Row],[Post Date]])) -> 
B62: =IF(ISSUELIST[[#This Row],[Company Name]]="","", COUNTIF( INDEX(ISSUELIST[Company Name],1) : ISSUELIST[[#This Row],[Company Name]], "<>" ) ) ->  | J62: =IF(ISSUELIST[[#This Row],[Cheque Date]]="","",IF(ISSUELIST[[#This Row],[Post Date]]>ISSUELIST[[#This Row],[Cheque Date]],"INVALID DATE",IF(ISSUELIST[[#This Row],[Cheque Date]]-TODAY()>0,ISSUELIST[[#This Row],[Cheque Date]]-TODAY()&" Days to go",IF(ISSUELIST[[#This Row],[Cheque Date]]-TODAY()=0,"TODAY","")))) ->  | K62: =IF(ISSUELIST[[#This Row],[Cheque Date]]="","",IF(ISSUELIST[[#This Row],[Post Date]]="","",ISSUELIST[[#This Row],[Cheque Date]]-ISSUELIST[[#This Row],[Post Date]])) -> 
B63: =IF(ISSUELIST[[#This Row],[Company Name]]="","", COUNTIF( INDEX(ISSUELIST[Company Name],1) : ISSUELIST[[#This Row],[Company Name]], "<>" ) ) ->  | J63: =IF(ISSUELIST[[#This Row],[Cheque Date]]="","",IF(ISSUELIST[[#This Row],[Post Date]]>ISSUELIST[[#This Row],[Cheque Date]],"INVALID DATE",IF(ISSUELIST[[#This Row],[Cheque Date]]-TODAY()>0,ISSUELIST[[#This Row],[Cheque Date]]-TODAY()&" Days to go",IF(ISSUELIST[[#This Row],[Cheque Date]]-TODAY()=0,"TODAY","")))) ->  | K63: =IF(ISSUELIST[[#This Row],[Cheque Date]]="","",IF(ISSUELIST[[#This Row],[Post Date]]="","",ISSUELIST[[#This Row],[Cheque Date]]-ISSUELIST[[#This Row],[Post Date]])) -> 
B64: =IF(ISSUELIST[[#This Row],[Company Name]]="","", COUNTIF( INDEX(ISSUELIST[Company Name],1) : ISSUELIST[[#This Row],[Company Name]], "<>" ) ) ->  | J64: =IF(ISSUELIST[[#This Row],[Cheque Date]]="","",IF(ISSUELIST[[#This Row],[Post Date]]>ISSUELIST[[#This Row],[Cheque Date]],"INVALID DATE",IF(ISSUELIST[[#This Row],[Cheque Date]]-TODAY()>0,ISSUELIST[[#This Row],[Cheque Date]]-TODAY()&" Days to go",IF(ISSUELIST[[#This Row],[Cheque Date]]-TODAY()=0,"TODAY","")))) ->  | K64: =IF(ISSUELIST[[#This Row],[Cheque Date]]="","",IF(ISSUELIST[[#This Row],[Post Date]]="","",ISSUELIST[[#This Row],[Cheque Date]]-ISSUELIST[[#This Row],[Post Date]])) -> 
B65: =IF(ISSUELIST[[#This Row],[Company Name]]="","", COUNTIF( INDEX(ISSUELIST[Company Name],1) : ISSUELIST[[#This Row],[Company Name]], "<>" ) ) ->  | J65: =IF(ISSUELIST[[#This Row],[Cheque Date]]="","",IF(ISSUELIST[[#This Row],[Post Date]]>ISSUELIST[[#This Row],[Cheque Date]],"INVALID DATE",IF(ISSUELIST[[#This Row],[Cheque Date]]-TODAY()>0,ISSUELIST[[#This Row],[Cheque Date]]-TODAY()&" Days to go",IF(ISSUELIST[[#This Row],[Cheque Date]]-TODAY()=0,"TODAY","")))) ->  | K65: =IF(ISSUELIST[[#This Row],[Cheque Date]]="","",IF(ISSUELIST[[#This Row],[Post Date]]="","",ISSUELIST[[#This Row],[Cheque Date]]-ISSUELIST[[#This Row],[Post Date]])) -> 
B66: =IF(ISSUELIST[[#This Row],[Company Name]]="","", COUNTIF( INDEX(ISSUELIST[Company Name],1) : ISSUELIST[[#This Row],[Company Name]], "<>" ) ) ->  | J66: =IF(ISSUELIST[[#This Row],[Cheque Date]]="","",IF(ISSUELIST[[#This Row],[Post Date]]>ISSUELIST[[#This Row],[Cheque Date]],"INVALID DATE",IF(ISSUELIST[[#This Row],[Cheque Date]]-TODAY()>0,ISSUELIST[[#This Row],[Cheque Date]]-TODAY()&" Days to go",IF(ISSUELIST[[#This Row],[Cheque Date]]-TODAY()=0,"TODAY","")))) ->  | K66: =IF(ISSUELIST[[#This Row],[Cheque Date]]="","",IF(ISSUELIST[[#This Row],[Post Date]]="","",ISSUELIST[[#This Row],[Cheque Date]]-ISSUELIST[[#This Row],[Post Date]])) -> 
B67: =IF(ISSUELIST[[#This Row],[Company Name]]="","", COUNTIF( INDEX(ISSUELIST[Company Name],1) : ISSUELIST[[#This Row],[Company Name]], "<>" ) ) ->  | J67: =IF(ISSUELIST[[#This Row],[Cheque Date]]="","",IF(ISSUELIST[[#This Row],[Post Date]]>ISSUELIST[[#This Row],[Cheque Date]],"INVALID DATE",IF(ISSUELIST[[#This Row],[Cheque Date]]-TODAY()>0,ISSUELIST[[#This Row],[Cheque Date]]-TODAY()&" Days to go",IF(ISSUELIST[[#This Row],[Cheque Date]]-TODAY()=0,"TODAY","")))) ->  | K67: =IF(ISSUELIST[[#This Row],[Cheque Date]]="","",IF(ISSUELIST[[#This Row],[Post Date]]="","",ISSUELIST[[#This Row],[Cheque Date]]-ISSUELIST[[#This Row],[Post Date]])) -> 
B68: =IF(ISSUELIST[[#This Row],[Company Name]]="","", COUNTIF( INDEX(ISSUELIST[Company Name],1) : ISSUELIST[[#This Row],[Company Name]], "<>" ) ) ->  | J68: =IF(ISSUELIST[[#This Row],[Cheque Date]]="","",IF(ISSUELIST[[#This Row],[Post Date]]>ISSUELIST[[#This Row],[Cheque Date]],"INVALID DATE",IF(ISSUELIST[[#This Row],[Cheque Date]]-TODAY()>0,ISSUELIST[[#This Row],[Cheque Date]]-TODAY()&" Days to go",IF(ISSUELIST[[#This Row],[Cheque Date]]-TODAY()=0,"TODAY","")))) ->  | K68: =IF(ISSUELIST[[#This Row],[Cheque Date]]="","",IF(ISSUELIST[[#This Row],[Post Date]]="","",ISSUELIST[[#This Row],[Cheque Date]]-ISSUELIST[[#This Row],[Post Date]])) -> 
B69: =IF(ISSUELIST[[#This Row],[Company Name]]="","", COUNTIF( INDEX(ISSUELIST[Company Name],1) : ISSUELIST[[#This Row],[Company Name]], "<>" ) ) ->  | J69: =IF(ISSUELIST[[#This Row],[Cheque Date]]="","",IF(ISSUELIST[[#This Row],[Post Date]]>ISSUELIST[[#This Row],[Cheque Date]],"INVALID DATE",IF(ISSUELIST[[#This Row],[Cheque Date]]-TODAY()>0,ISSUELIST[[#This Row],[Cheque Date]]-TODAY()&" Days to go",IF(ISSUELIST[[#This Row],[Cheque Date]]-TODAY()=0,"TODAY","")))) ->  | K69: =IF(ISSUELIST[[#This Row],[Cheque Date]]="","",IF(ISSUELIST[[#This Row],[Post Date]]="","",ISSUELIST[[#This Row],[Cheque Date]]-ISSUELIST[[#This Row],[Post Date]])) -> 
B70: =IF(ISSUELIST[[#This Row],[Company Name]]="","", COUNTIF( INDEX(ISSUELIST[Company Name],1) : ISSUELIST[[#This Row],[Company Name]], "<>" ) ) ->  | J70: =IF(ISSUELIST[[#This Row],[Cheque Date]]="","",IF(ISSUELIST[[#This Row],[Post Date]]>ISSUELIST[[#This Row],[Cheque Date]],"INVALID DATE",IF(ISSUELIST[[#This Row],[Cheque Date]]-TODAY()>0,ISSUELIST[[#This Row],[Cheque Date]]-TODAY()&" Days to go",IF(ISSUELIST[[#This Row],[Cheque Date]]-TODAY()=0,"TODAY","")))) ->  | K70: =IF(ISSUELIST[[#This Row],[Cheque Date]]="","",IF(ISSUELIST[[#This Row],[Post Date]]="","",ISSUELIST[[#This Row],[Cheque Date]]-ISSUELIST[[#This Row],[Post Date]])) -> 
B71: =IF(ISSUELIST[[#This Row],[Company Name]]="","", COUNTIF( INDEX(ISSUELIST[Company Name],1) : ISSUELIST[[#This Row],[Company Name]], "<>" ) ) ->  | J71: =IF(ISSUELIST[[#This Row],[Cheque Date]]="","",IF(ISSUELIST[[#This Row],[Post Date]]>ISSUELIST[[#This Row],[Cheque Date]],"INVALID DATE",IF(ISSUELIST[[#This Row],[Cheque Date]]-TODAY()>0,ISSUELIST[[#This Row],[Cheque Date]]-TODAY()&" Days to go",IF(ISSUELIST[[#This Row],[Cheque Date]]-TODAY()=0,"TODAY","")))) ->  | K71: =IF(ISSUELIST[[#This Row],[Cheque Date]]="","",IF(ISSUELIST[[#This Row],[Post Date]]="","",ISSUELIST[[#This Row],[Cheque Date]]-ISSUELIST[[#This Row],[Post Date]])) -> 
B72: =IF(ISSUELIST[[#This Row],[Company Name]]="","", COUNTIF( INDEX(ISSUELIST[Company Name],1) : ISSUELIST[[#This Row],[Company Name]], "<>" ) ) ->  | J72: =IF(ISSUELIST[[#This Row],[Cheque Date]]="","",IF(ISSUELIST[[#This Row],[Post Date]]>ISSUELIST[[#This Row],[Cheque Date]],"INVALID DATE",IF(ISSUELIST[[#This Row],[Cheque Date]]-TODAY()>0,ISSUELIST[[#This Row],[Cheque Date]]-TODAY()&" Days to go",IF(ISSUELIST[[#This Row],[Cheque Date]]-TODAY()=0,"TODAY","")))) ->  | K72: =IF(ISSUELIST[[#This Row],[Cheque Date]]="","",IF(ISSUELIST[[#This Row],[Post Date]]="","",ISSUELIST[[#This Row],[Cheque Date]]-ISSUELIST[[#This Row],[Post Date]])) -> 
B73: =IF(ISSUELIST[[#This Row],[Company Name]]="","", COUNTIF( INDEX(ISSUELIST[Company Name],1) : ISSUELIST[[#This Row],[Company Name]], "<>" ) ) ->  | J73: =IF(ISSUELIST[[#This Row],[Cheque Date]]="","",IF(ISSUELIST[[#This Row],[Post Date]]>ISSUELIST[[#This Row],[Cheque Date]],"INVALID DATE",IF(ISSUELIST[[#This Row],[Cheque Date]]-TODAY()>0,ISSUELIST[[#This Row],[Cheque Date]]-TODAY()&" Days to go",IF(ISSUELIST[[#This Row],[Cheque Date]]-TODAY()=0,"TODAY","")))) ->  | K73: =IF(ISSUELIST[[#This Row],[Cheque Date]]="","",IF(ISSUELIST[[#This Row],[Post Date]]="","",ISSUELIST[[#This Row],[Cheque Date]]-ISSUELIST[[#This Row],[Post Date]])) -> 
B74: =IF(ISSUELIST[[#This Row],[Company Name]]="","", COUNTIF( INDEX(ISSUELIST[Company Name],1) : ISSUELIST[[#This Row],[Company Name]], "<>" ) ) ->  | J74: =IF(ISSUELIST[[#This Row],[Cheque Date]]="","",IF(ISSUELIST[[#This Row],[Post Date]]>ISSUELIST[[#This Row],[Cheque Date]],"INVALID DATE",IF(ISSUELIST[[#This Row],[Cheque Date]]-TODAY()>0,ISSUELIST[[#This Row],[Cheque Date]]-TODAY()&" Days to go",IF(ISSUELIST[[#This Row],[Cheque Date]]-TODAY()=0,"TODAY","")))) ->  | K74: =IF(ISSUELIST[[#This Row],[Cheque Date]]="","",IF(ISSUELIST[[#This Row],[Post Date]]="","",ISSUELIST[[#This Row],[Cheque Date]]-ISSUELIST[[#This Row],[Post Date]])) -> 
B75: =IF(ISSUELIST[[#This Row],[Company Name]]="","", COUNTIF( INDEX(ISSUELIST[Company Name],1) : ISSUELIST[[#This Row],[Company Name]], "<>" ) ) ->  | J75: =IF(ISSUELIST[[#This Row],[Cheque Date]]="","",IF(ISSUELIST[[#This Row],[Post Date]]>ISSUELIST[[#This Row],[Cheque Date]],"INVALID DATE",IF(ISSUELIST[[#This Row],[Cheque Date]]-TODAY()>0,ISSUELIST[[#This Row],[Cheque Date]]-TODAY()&" Days to go",IF(ISSUELIST[[#This Row],[Cheque Date]]-TODAY()=0,"TODAY","")))) ->  | K75: =IF(ISSUELIST[[#This Row],[Cheque Date]]="","",IF(ISSUELIST[[#This Row],[Post Date]]="","",ISSUELIST[[#This Row],[Cheque Date]]-ISSUELIST[[#This Row],[Post Date]])) -> 
B76: =IF(ISSUELIST[[#This Row],[Company Name]]="","", COUNTIF( INDEX(ISSUELIST[Company Name],1) : ISSUELIST[[#This Row],[Company Name]], "<>" ) ) ->  | J76: =IF(ISSUELIST[[#This Row],[Cheque Date]]="","",IF(ISSUELIST[[#This Row],[Post Date]]>ISSUELIST[[#This Row],[Cheque Date]],"INVALID DATE",IF(ISSUELIST[[#This Row],[Cheque Date]]-TODAY()>0,ISSUELIST[[#This Row],[Cheque Date]]-TODAY()&" Days to go",IF(ISSUELIST[[#This Row],[Cheque Date]]-TODAY()=0,"TODAY","")))) ->  | K76: =IF(ISSUELIST[[#This Row],[Cheque Date]]="","",IF(ISSUELIST[[#This Row],[Post Date]]="","",ISSUELIST[[#This Row],[Cheque Date]]-ISSUELIST[[#This Row],[Post Date]])) -> 
B77: =IF(ISSUELIST[[#This Row],[Company Name]]="","", COUNTIF( INDEX(ISSUELIST[Company Name],1) : ISSUELIST[[#This Row],[Company Name]], "<>" ) ) ->  | J77: =IF(ISSUELIST[[#This Row],[Cheque Date]]="","",IF(ISSUELIST[[#This Row],[Post Date]]>ISSUELIST[[#This Row],[Cheque Date]],"INVALID DATE",IF(ISSUELIST[[#This Row],[Cheque Date]]-TODAY()>0,ISSUELIST[[#This Row],[Cheque Date]]-TODAY()&" Days to go",IF(ISSUELIST[[#This Row],[Cheque Date]]-TODAY()=0,"TODAY","")))) ->  | K77: =IF(ISSUELIST[[#This Row],[Cheque Date]]="","",IF(ISSUELIST[[#This Row],[Post Date]]="","",ISSUELIST[[#This Row],[Cheque Date]]-ISSUELIST[[#This Row],[Post Date]])) -> 
B78: =IF(ISSUELIST[[#This Row],[Company Name]]="","", COUNTIF( INDEX(ISSUELIST[Company Name],1) : ISSUELIST[[#This Row],[Company Name]], "<>" ) ) ->  | J78: =IF(ISSUELIST[[#This Row],[Cheque Date]]="","",IF(ISSUELIST[[#This Row],[Post Date]]>ISSUELIST[[#This Row],[Cheque Date]],"INVALID DATE",IF(ISSUELIST[[#This Row],[Cheque Date]]-TODAY()>0,ISSUELIST[[#This Row],[Cheque Date]]-TODAY()&" Days to go",IF(ISSUELIST[[#This Row],[Cheque Date]]-TODAY()=0,"TODAY","")))) ->  | K78: =IF(ISSUELIST[[#This Row],[Cheque Date]]="","",IF(ISSUELIST[[#This Row],[Post Date]]="","",ISSUELIST[[#This Row],[Cheque Date]]-ISSUELIST[[#This Row],[Post Date]])) -> 
B79: =IF(ISSUELIST[[#This Row],[Company Name]]="","", COUNTIF( INDEX(ISSUELIST[Company Name],1) : ISSUELIST[[#This Row],[Company Name]], "<>" ) ) ->  | J79: =IF(ISSUELIST[[#This Row],[Cheque Date]]="","",IF(ISSUELIST[[#This Row],[Post Date]]>ISSUELIST[[#This Row],[Cheque Date]],"INVALID DATE",IF(ISSUELIST[[#This Row],[Cheque Date]]-TODAY()>0,ISSUELIST[[#This Row],[Cheque Date]]-TODAY()&" Days to go",IF(ISSUELIST[[#This Row],[Cheque Date]]-TODAY()=0,"TODAY","")))) ->  | K79: =IF(ISSUELIST[[#This Row],[Cheque Date]]="","",IF(ISSUELIST[[#This Row],[Post Date]]="","",ISSUELIST[[#This Row],[Cheque Date]]-ISSUELIST[[#This Row],[Post Date]])) -> 
B80: =IF(ISSUELIST[[#This Row],[Company Name]]="","", COUNTIF( INDEX(ISSUELIST[Company Name],1) : ISSUELIST[[#This Row],[Company Name]], "<>" ) ) ->  | J80: =IF(ISSUELIST[[#This Row],[Cheque Date]]="","",IF(ISSUELIST[[#This Row],[Post Date]]>ISSUELIST[[#This Row],[Cheque Date]],"INVALID DATE",IF(ISSUELIST[[#This Row],[Cheque Date]]-TODAY()>0,ISSUELIST[[#This Row],[Cheque Date]]-TODAY()&" Days to go",IF(ISSUELIST[[#This Row],[Cheque Date]]-TODAY()=0,"TODAY","")))) ->  | K80: =IF(ISSUELIST[[#This Row],[Cheque Date]]="","",IF(ISSUELIST[[#This Row],[Post Date]]="","",ISSUELIST[[#This Row],[Cheque Date]]-ISSUELIST[[#This Row],[Post Date]])) -> 
B81: =IF(ISSUELIST[[#This Row],[Company Name]]="","", COUNTIF( INDEX(ISSUELIST[Company Name],1) : ISSUELIST[[#This Row],[Company Name]], "<>" ) ) ->  | J81: =IF(ISSUELIST[[#This Row],[Cheque Date]]="","",IF(ISSUELIST[[#This Row],[Post Date]]>ISSUELIST[[#This Row],[Cheque Date]],"INVALID DATE",IF(ISSUELIST[[#This Row],[Cheque Date]]-TODAY()>0,ISSUELIST[[#This Row],[Cheque Date]]-TODAY()&" Days to go",IF(ISSUELIST[[#This Row],[Cheque Date]]-TODAY()=0,"TODAY","")))) ->  | K81: =IF(ISSUELIST[[#This Row],[Cheque Date]]="","",IF(ISSUELIST[[#This Row],[Post Date]]="","",ISSUELIST[[#This Row],[Cheque Date]]-ISSUELIST[[#This Row],[Post Date]])) -> 
B82: =IF(ISSUELIST[[#This Row],[Company Name]]="","", COUNTIF( INDEX(ISSUELIST[Company Name],1) : ISSUELIST[[#This Row],[Company Name]], "<>" ) ) ->  | J82: =IF(ISSUELIST[[#This Row],[Cheque Date]]="","",IF(ISSUELIST[[#This Row],[Post Date]]>ISSUELIST[[#This Row],[Cheque Date]],"INVALID DATE",IF(ISSUELIST[[#This Row],[Cheque Date]]-TODAY()>0,ISSUELIST[[#This Row],[Cheque Date]]-TODAY()&" Days to go",IF(ISSUELIST[[#This Row],[Cheque Date]]-TODAY()=0,"TODAY","")))) ->  | K82: =IF(ISSUELIST[[#This Row],[Cheque Date]]="","",IF(ISSUELIST[[#This Row],[Post Date]]="","",ISSUELIST[[#This Row],[Cheque Date]]-ISSUELIST[[#This Row],[Post Date]])) -> 
B83: =IF(ISSUELIST[[#This Row],[Company Name]]="","", COUNTIF( INDEX(ISSUELIST[Company Name],1) : ISSUELIST[[#This Row],[Company Name]], "<>" ) ) ->  | J83: =IF(ISSUELIST[[#This Row],[Cheque Date]]="","",IF(ISSUELIST[[#This Row],[Post Date]]>ISSUELIST[[#This Row],[Cheque Date]],"INVALID DATE",IF(ISSUELIST[[#This Row],[Cheque Date]]-TODAY()>0,ISSUELIST[[#This Row],[Cheque Date]]-TODAY()&" Days to go",IF(ISSUELIST[[#This Row],[Cheque Date]]-TODAY()=0,"TODAY","")))) ->  | K83: =IF(ISSUELIST[[#This Row],[Cheque Date]]="","",IF(ISSUELIST[[#This Row],[Post Date]]="","",ISSUELIST[[#This Row],[Cheque Date]]-ISSUELIST[[#This Row],[Post Date]])) -> 
B84: =IF(ISSUELIST[[#This Row],[Company Name]]="","", COUNTIF( INDEX(ISSUELIST[Company Name],1) : ISSUELIST[[#This Row],[Company Name]], "<>" ) ) ->  | J84: =IF(ISSUELIST[[#This Row],[Cheque Date]]="","",IF(ISSUELIST[[#This Row],[Post Date]]>ISSUELIST[[#This Row],[Cheque Date]],"INVALID DATE",IF(ISSUELIST[[#This Row],[Cheque Date]]-TODAY()>0,ISSUELIST[[#This Row],[Cheque Date]]-TODAY()&" Days to go",IF(ISSUELIST[[#This Row],[Cheque Date]]-TODAY()=0,"TODAY","")))) ->  | K84: =IF(ISSUELIST[[#This Row],[Cheque Date]]="","",IF(ISSUELIST[[#This Row],[Post Date]]="","",ISSUELIST[[#This Row],[Cheque Date]]-ISSUELIST[[#This Row],[Post Date]])) -> 
B85: =IF(ISSUELIST[[#This Row],[Company Name]]="","", COUNTIF( INDEX(ISSUELIST[Company Name],1) : ISSUELIST[[#This Row],[Company Name]], "<>" ) ) ->  | J85: =IF(ISSUELIST[[#This Row],[Cheque Date]]="","",IF(ISSUELIST[[#This Row],[Post Date]]>ISSUELIST[[#This Row],[Cheque Date]],"INVALID DATE",IF(ISSUELIST[[#This Row],[Cheque Date]]-TODAY()>0,ISSUELIST[[#This Row],[Cheque Date]]-TODAY()&" Days to go",IF(ISSUELIST[[#This Row],[Cheque Date]]-TODAY()=0,"TODAY","")))) ->  | K85: =IF(ISSUELIST[[#This Row],[Cheque Date]]="","",IF(ISSUELIST[[#This Row],[Post Date]]="","",ISSUELIST[[#This Row],[Cheque Date]]-ISSUELIST[[#This Row],[Post Date]])) -> 
B86: =IF(ISSUELIST[[#This Row],[Company Name]]="","", COUNTIF( INDEX(ISSUELIST[Company Name],1) : ISSUELIST[[#This Row],[Company Name]], "<>" ) ) ->  | J86: =IF(ISSUELIST[[#This Row],[Cheque Date]]="","",IF(ISSUELIST[[#This Row],[Post Date]]>ISSUELIST[[#This Row],[Cheque Date]],"INVALID DATE",IF(ISSUELIST[[#This Row],[Cheque Date]]-TODAY()>0,ISSUELIST[[#This Row],[Cheque Date]]-TODAY()&" Days to go",IF(ISSUELIST[[#This Row],[Cheque Date]]-TODAY()=0,"TODAY","")))) ->  | K86: =IF(ISSUELIST[[#This Row],[Cheque Date]]="","",IF(ISSUELIST[[#This Row],[Post Date]]="","",ISSUELIST[[#This Row],[Cheque Date]]-ISSUELIST[[#This Row],[Post Date]])) -> 
B87: =IF(ISSUELIST[[#This Row],[Company Name]]="","", COUNTIF( INDEX(ISSUELIST[Company Name],1) : ISSUELIST[[#This Row],[Company Name]], "<>" ) ) ->  | J87: =IF(ISSUELIST[[#This Row],[Cheque Date]]="","",IF(ISSUELIST[[#This Row],[Post Date]]>ISSUELIST[[#This Row],[Cheque Date]],"INVALID DATE",IF(ISSUELIST[[#This Row],[Cheque Date]]-TODAY()>0,ISSUELIST[[#This Row],[Cheque Date]]-TODAY()&" Days to go",IF(ISSUELIST[[#This Row],[Cheque Date]]-TODAY()=0,"TODAY","")))) ->  | K87: =IF(ISSUELIST[[#This Row],[Cheque Date]]="","",IF(ISSUELIST[[#This Row],[Post Date]]="","",ISSUELIST[[#This Row],[Cheque Date]]-ISSUELIST[[#This Row],[Post Date]])) -> 
B88: =IF(ISSUELIST[[#This Row],[Company Name]]="","", COUNTIF( INDEX(ISSUELIST[Company Name],1) : ISSUELIST[[#This Row],[Company Name]], "<>" ) ) ->  | J88: =IF(ISSUELIST[[#This Row],[Cheque Date]]="","",IF(ISSUELIST[[#This Row],[Post Date]]>ISSUELIST[[#This Row],[Cheque Date]],"INVALID DATE",IF(ISSUELIST[[#This Row],[Cheque Date]]-TODAY()>0,ISSUELIST[[#This Row],[Cheque Date]]-TODAY()&" Days to go",IF(ISSUELIST[[#This Row],[Cheque Date]]-TODAY()=0,"TODAY","")))) ->  | K88: =IF(ISSUELIST[[#This Row],[Cheque Date]]="","",IF(ISSUELIST[[#This Row],[Post Date]]="","",ISSUELIST[[#This Row],[Cheque Date]]-ISSUELIST[[#This Row],[Post Date]])) -> 
B89: =IF(ISSUELIST[[#This Row],[Company Name]]="","", COUNTIF( INDEX(ISSUELIST[Company Name],1) : ISSUELIST[[#This Row],[Company Name]], "<>" ) ) ->  | J89: =IF(ISSUELIST[[#This Row],[Cheque Date]]="","",IF(ISSUELIST[[#This Row],[Post Date]]>ISSUELIST[[#This Row],[Cheque Date]],"INVALID DATE",IF(ISSUELIST[[#This Row],[Cheque Date]]-TODAY()>0,ISSUELIST[[#This Row],[Cheque Date]]-TODAY()&" Days to go",IF(ISSUELIST[[#This Row],[Cheque Date]]-TODAY()=0,"TODAY","")))) ->  | K89: =IF(ISSUELIST[[#This Row],[Cheque Date]]="","",IF(ISSUELIST[[#This Row],[Post Date]]="","",ISSUELIST[[#This Row],[Cheque Date]]-ISSUELIST[[#This Row],[Post Date]])) -> 
B90: =IF(ISSUELIST[[#This Row],[Company Name]]="","", COUNTIF( INDEX(ISSUELIST[Company Name],1) : ISSUELIST[[#This Row],[Company Name]], "<>" ) ) ->  | J90: =IF(ISSUELIST[[#This Row],[Cheque Date]]="","",IF(ISSUELIST[[#This Row],[Post Date]]>ISSUELIST[[#This Row],[Cheque Date]],"INVALID DATE",IF(ISSUELIST[[#This Row],[Cheque Date]]-TODAY()>0,ISSUELIST[[#This Row],[Cheque Date]]-TODAY()&" Days to go",IF(ISSUELIST[[#This Row],[Cheque Date]]-TODAY()=0,"TODAY","")))) ->  | K90: =IF(ISSUELIST[[#This Row],[Cheque Date]]="","",IF(ISSUELIST[[#This Row],[Post Date]]="","",ISSUELIST[[#This Row],[Cheque Date]]-ISSUELIST[[#This Row],[Post Date]])) -> 
B91: =IF(ISSUELIST[[#This Row],[Company Name]]="","", COUNTIF( INDEX(ISSUELIST[Company Name],1) : ISSUELIST[[#This Row],[Company Name]], "<>" ) ) ->  | J91: =IF(ISSUELIST[[#This Row],[Cheque Date]]="","",IF(ISSUELIST[[#This Row],[Post Date]]>ISSUELIST[[#This Row],[Cheque Date]],"INVALID DATE",IF(ISSUELIST[[#This Row],[Cheque Date]]-TODAY()>0,ISSUELIST[[#This Row],[Cheque Date]]-TODAY()&" Days to go",IF(ISSUELIST[[#This Row],[Cheque Date]]-TODAY()=0,"TODAY","")))) ->  | K91: =IF(ISSUELIST[[#This Row],[Cheque Date]]="","",IF(ISSUELIST[[#This Row],[Post Date]]="","",ISSUELIST[[#This Row],[Cheque Date]]-ISSUELIST[[#This Row],[Post Date]])) -> 
B92: =IF(ISSUELIST[[#This Row],[Company Name]]="","", COUNTIF( INDEX(ISSUELIST[Company Name],1) : ISSUELIST[[#This Row],[Company Name]], "<>" ) ) ->  | J92: =IF(ISSUELIST[[#This Row],[Cheque Date]]="","",IF(ISSUELIST[[#This Row],[Post Date]]>ISSUELIST[[#This Row],[Cheque Date]],"INVALID DATE",IF(ISSUELIST[[#This Row],[Cheque Date]]-TODAY()>0,ISSUELIST[[#This Row],[Cheque Date]]-TODAY()&" Days to go",IF(ISSUELIST[[#This Row],[Cheque Date]]-TODAY()=0,"TODAY","")))) ->  | K92: =IF(ISSUELIST[[#This Row],[Cheque Date]]="","",IF(ISSUELIST[[#This Row],[Post Date]]="","",ISSUELIST[[#This Row],[Cheque Date]]-ISSUELIST[[#This Row],[Post Date]])) -> 
B93: =IF(ISSUELIST[[#This Row],[Company Name]]="","", COUNTIF( INDEX(ISSUELIST[Company Name],1) : ISSUELIST[[#This Row],[Company Name]], "<>" ) ) ->  | J93: =IF(ISSUELIST[[#This Row],[Cheque Date]]="","",IF(ISSUELIST[[#This Row],[Post Date]]>ISSUELIST[[#This Row],[Cheque Date]],"INVALID DATE",IF(ISSUELIST[[#This Row],[Cheque Date]]-TODAY()>0,ISSUELIST[[#This Row],[Cheque Date]]-TODAY()&" Days to go",IF(ISSUELIST[[#This Row],[Cheque Date]]-TODAY()=0,"TODAY","")))) ->  | K93: =IF(ISSUELIST[[#This Row],[Cheque Date]]="","",IF(ISSUELIST[[#This Row],[Post Date]]="","",ISSUELIST[[#This Row],[Cheque Date]]-ISSUELIST[[#This Row],[Post Date]])) -> 
B94: =IF(ISSUELIST[[#This Row],[Company Name]]="","", COUNTIF( INDEX(ISSUELIST[Company Name],1) : ISSUELIST[[#This Row],[Company Name]], "<>" ) ) ->  | J94: =IF(ISSUELIST[[#This Row],[Cheque Date]]="","",IF(ISSUELIST[[#This Row],[Post Date]]>ISSUELIST[[#This Row],[Cheque Date]],"INVALID DATE",IF(ISSUELIST[[#This Row],[Cheque Date]]-TODAY()>0,ISSUELIST[[#This Row],[Cheque Date]]-TODAY()&" Days to go",IF(ISSUELIST[[#This Row],[Cheque Date]]-TODAY()=0,"TODAY","")))) ->  | K94: =IF(ISSUELIST[[#This Row],[Cheque Date]]="","",IF(ISSUELIST[[#This Row],[Post Date]]="","",ISSUELIST[[#This Row],[Cheque Date]]-ISSUELIST[[#This Row],[Post Date]])) -> 
B95: =IF(ISSUELIST[[#This Row],[Company Name]]="","", COUNTIF( INDEX(ISSUELIST[Company Name],1) : ISSUELIST[[#This Row],[Company Name]], "<>" ) ) ->  | J95: =IF(ISSUELIST[[#This Row],[Cheque Date]]="","",IF(ISSUELIST[[#This Row],[Post Date]]>ISSUELIST[[#This Row],[Cheque Date]],"INVALID DATE",IF(ISSUELIST[[#This Row],[Cheque Date]]-TODAY()>0,ISSUELIST[[#This Row],[Cheque Date]]-TODAY()&" Days to go",IF(ISSUELIST[[#This Row],[Cheque Date]]-TODAY()=0,"TODAY","")))) ->  | K95: =IF(ISSUELIST[[#This Row],[Cheque Date]]="","",IF(ISSUELIST[[#This Row],[Post Date]]="","",ISSUELIST[[#This Row],[Cheque Date]]-ISSUELIST[[#This Row],[Post Date]])) -> 
B96: =IF(ISSUELIST[[#This Row],[Company Name]]="","", COUNTIF( INDEX(ISSUELIST[Company Name],1) : ISSUELIST[[#This Row],[Company Name]], "<>" ) ) ->  | J96: =IF(ISSUELIST[[#This Row],[Cheque Date]]="","",IF(ISSUELIST[[#This Row],[Post Date]]>ISSUELIST[[#This Row],[Cheque Date]],"INVALID DATE",IF(ISSUELIST[[#This Row],[Cheque Date]]-TODAY()>0,ISSUELIST[[#This Row],[Cheque Date]]-TODAY()&" Days to go",IF(ISSUELIST[[#This Row],[Cheque Date]]-TODAY()=0,"TODAY","")))) ->  | K96: =IF(ISSUELIST[[#This Row],[Cheque Date]]="","",IF(ISSUELIST[[#This Row],[Post Date]]="","",ISSUELIST[[#This Row],[Cheque Date]]-ISSUELIST[[#This Row],[Post Date]])) -> 
B97: =IF(ISSUELIST[[#This Row],[Company Name]]="","", COUNTIF( INDEX(ISSUELIST[Company Name],1) : ISSUELIST[[#This Row],[Company Name]], "<>" ) ) ->  | J97: =IF(ISSUELIST[[#This Row],[Cheque Date]]="","",IF(ISSUELIST[[#This Row],[Post Date]]>ISSUELIST[[#This Row],[Cheque Date]],"INVALID DATE",IF(ISSUELIST[[#This Row],[Cheque Date]]-TODAY()>0,ISSUELIST[[#This Row],[Cheque Date]]-TODAY()&" Days to go",IF(ISSUELIST[[#This Row],[Cheque Date]]-TODAY()=0,"TODAY","")))) ->  | K97: =IF(ISSUELIST[[#This Row],[Cheque Date]]="","",IF(ISSUELIST[[#This Row],[Post Date]]="","",ISSUELIST[[#This Row],[Cheque Date]]-ISSUELIST[[#This Row],[Post Date]])) -> 
B98: =IF(ISSUELIST[[#This Row],[Company Name]]="","", COUNTIF( INDEX(ISSUELIST[Company Name],1) : ISSUELIST[[#This Row],[Company Name]], "<>" ) ) ->  | J98: =IF(ISSUELIST[[#This Row],[Cheque Date]]="","",IF(ISSUELIST[[#This Row],[Post Date]]>ISSUELIST[[#This Row],[Cheque Date]],"INVALID DATE",IF(ISSUELIST[[#This Row],[Cheque Date]]-TODAY()>0,ISSUELIST[[#This Row],[Cheque Date]]-TODAY()&" Days to go",IF(ISSUELIST[[#This Row],[Cheque Date]]-TODAY()=0,"TODAY","")))) ->  | K98: =IF(ISSUELIST[[#This Row],[Cheque Date]]="","",IF(ISSUELIST[[#This Row],[Post Date]]="","",ISSUELIST[[#This Row],[Cheque Date]]-ISSUELIST[[#This Row],[Post Date]])) -> 
B99: =IF(ISSUELIST[[#This Row],[Company Name]]="","", COUNTIF( INDEX(ISSUELIST[Company Name],1) : ISSUELIST[[#This Row],[Company Name]], "<>" ) ) ->  | J99: =IF(ISSUELIST[[#This Row],[Cheque Date]]="","",IF(ISSUELIST[[#This Row],[Post Date]]>ISSUELIST[[#This Row],[Cheque Date]],"INVALID DATE",IF(ISSUELIST[[#This Row],[Cheque Date]]-TODAY()>0,ISSUELIST[[#This Row],[Cheque Date]]-TODAY()&" Days to go",IF(ISSUELIST[[#This Row],[Cheque Date]]-TODAY()=0,"TODAY","")))) ->  | K99: =IF(ISSUELIST[[#This Row],[Cheque Date]]="","",IF(ISSUELIST[[#This Row],[Post Date]]="","",ISSUELIST[[#This Row],[Cheque Date]]-ISSUELIST[[#This Row],[Post Date]])) -> 
B100: =IF(ISSUELIST[[#This Row],[Company Name]]="","", COUNTIF( INDEX(ISSUELIST[Company Name],1) : ISSUELIST[[#This Row],[Company Name]], "<>" ) ) ->  | J100: =IF(ISSUELIST[[#This Row],[Cheque Date]]="","",IF(ISSUELIST[[#This Row],[Post Date]]>ISSUELIST[[#This Row],[Cheque Date]],"INVALID DATE",IF(ISSUELIST[[#This Row],[Cheque Date]]-TODAY()>0,ISSUELIST[[#This Row],[Cheque Date]]-TODAY()&" Days to go",IF(ISSUELIST[[#This Row],[Cheque Date]]-TODAY()=0,"TODAY","")))) ->  | K100: =IF(ISSUELIST[[#This Row],[Cheque Date]]="","",IF(ISSUELIST[[#This Row],[Post Date]]="","",ISSUELIST[[#This Row],[Cheque Date]]-ISSUELIST[[#This Row],[Post Date]])) -> 
B101: =IF(ISSUELIST[[#This Row],[Company Name]]="","", COUNTIF( INDEX(ISSUELIST[Company Name],1) : ISSUELIST[[#This Row],[Company Name]], "<>" ) ) ->  | J101: =IF(ISSUELIST[[#This Row],[Cheque Date]]="","",IF(ISSUELIST[[#This Row],[Post Date]]>ISSUELIST[[#This Row],[Cheque Date]],"INVALID DATE",IF(ISSUELIST[[#This Row],[Cheque Date]]-TODAY()>0,ISSUELIST[[#This Row],[Cheque Date]]-TODAY()&" Days to go",IF(ISSUELIST[[#This Row],[Cheque Date]]-TODAY()=0,"TODAY","")))) ->  | K101: =IF(ISSUELIST[[#This Row],[Cheque Date]]="","",IF(ISSUELIST[[#This Row],[Post Date]]="","",ISSUELIST[[#This Row],[Cheque Date]]-ISSUELIST[[#This Row],[Post Date]])) -> 
B102: =IF(ISSUELIST[[#This Row],[Company Name]]="","", COUNTIF( INDEX(ISSUELIST[Company Name],1) : ISSUELIST[[#This Row],[Company Name]], "<>" ) ) ->  | J102: =IF(ISSUELIST[[#This Row],[Cheque Date]]="","",IF(ISSUELIST[[#This Row],[Post Date]]>ISSUELIST[[#This Row],[Cheque Date]],"INVALID DATE",IF(ISSUELIST[[#This Row],[Cheque Date]]-TODAY()>0,ISSUELIST[[#This Row],[Cheque Date]]-TODAY()&" Days to go",IF(ISSUELIST[[#This Row],[Cheque Date]]-TODAY()=0,"TODAY","")))) ->  | K102: =IF(ISSUELIST[[#This Row],[Cheque Date]]="","",IF(ISSUELIST[[#This Row],[Post Date]]="","",ISSUELIST[[#This Row],[Cheque Date]]-ISSUELIST[[#This Row],[Post Date]])) -> 
B103: =IF(ISSUELIST[[#This Row],[Company Name]]="","", COUNTIF( INDEX(ISSUELIST[Company Name],1) : ISSUELIST[[#This Row],[Company Name]], "<>" ) ) ->  | J103: =IF(ISSUELIST[[#This Row],[Cheque Date]]="","",IF(ISSUELIST[[#This Row],[Post Date]]>ISSUELIST[[#This Row],[Cheque Date]],"INVALID DATE",IF(ISSUELIST[[#This Row],[Cheque Date]]-TODAY()>0,ISSUELIST[[#This Row],[Cheque Date]]-TODAY()&" Days to go",IF(ISSUELIST[[#This Row],[Cheque Date]]-TODAY()=0,"TODAY","")))) ->  | K103: =IF(ISSUELIST[[#This Row],[Cheque Date]]="","",IF(ISSUELIST[[#This Row],[Post Date]]="","",ISSUELIST[[#This Row],[Cheque Date]]-ISSUELIST[[#This Row],[Post Date]])) -> 
B104: =IF(ISSUELIST[[#This Row],[Company Name]]="","", COUNTIF( INDEX(ISSUELIST[Company Name],1) : ISSUELIST[[#This Row],[Company Name]], "<>" ) ) ->  | J104: =IF(ISSUELIST[[#This Row],[Cheque Date]]="","",IF(ISSUELIST[[#This Row],[Post Date]]>ISSUELIST[[#This Row],[Cheque Date]],"INVALID DATE",IF(ISSUELIST[[#This Row],[Cheque Date]]-TODAY()>0,ISSUELIST[[#This Row],[Cheque Date]]-TODAY()&" Days to go",IF(ISSUELIST[[#This Row],[Cheque Date]]-TODAY()=0,"TODAY","")))) ->  | K104: =IF(ISSUELIST[[#This Row],[Cheque Date]]="","",IF(ISSUELIST[[#This Row],[Post Date]]="","",ISSUELIST[[#This Row],[Cheque Date]]-ISSUELIST[[#This Row],[Post Date]])) -> 
B105: =IF(ISSUELIST[[#This Row],[Company Name]]="","", COUNTIF( INDEX(ISSUELIST[Company Name],1) : ISSUELIST[[#This Row],[Company Name]], "<>" ) ) ->  | J105: =IF(ISSUELIST[[#This Row],[Cheque Date]]="","",IF(ISSUELIST[[#This Row],[Post Date]]>ISSUELIST[[#This Row],[Cheque Date]],"INVALID DATE",IF(ISSUELIST[[#This Row],[Cheque Date]]-TODAY()>0,ISSUELIST[[#This Row],[Cheque Date]]-TODAY()&" Days to go",IF(ISSUELIST[[#This Row],[Cheque Date]]-TODAY()=0,"TODAY","")))) ->  | K105: =IF(ISSUELIST[[#This Row],[Cheque Date]]="","",IF(ISSUELIST[[#This Row],[Post Date]]="","",ISSUELIST[[#This Row],[Cheque Date]]-ISSUELIST[[#This Row],[Post Date]])) -> 
B106: =IF(ISSUELIST[[#This Row],[Company Name]]="","", COUNTIF( INDEX(ISSUELIST[Company Name],1) : ISSUELIST[[#This Row],[Company Name]], "<>" ) ) ->  | J106: =IF(ISSUELIST[[#This Row],[Cheque Date]]="","",IF(ISSUELIST[[#This Row],[Post Date]]>ISSUELIST[[#This Row],[Cheque Date]],"INVALID DATE",IF(ISSUELIST[[#This Row],[Cheque Date]]-TODAY()>0,ISSUELIST[[#This Row],[Cheque Date]]-TODAY()&" Days to go",IF(ISSUELIST[[#This Row],[Cheque Date]]-TODAY()=0,"TODAY","")))) ->  | K106: =IF(ISSUELIST[[#This Row],[Cheque Date]]="","",IF(ISSUELIST[[#This Row],[Post Date]]="","",ISSUELIST[[#This Row],[Cheque Date]]-ISSUELIST[[#This Row],[Post Date]])) -> 
B107: =IF(ISSUELIST[[#This Row],[Company Name]]="","", COUNTIF( INDEX(ISSUELIST[Company Name],1) : ISSUELIST[[#This Row],[Company Name]], "<>" ) ) ->  | J107: =IF(ISSUELIST[[#This Row],[Cheque Date]]="","",IF(ISSUELIST[[#This Row],[Post Date]]>ISSUELIST[[#This Row],[Cheque Date]],"INVALID DATE",IF(ISSUELIST[[#This Row],[Cheque Date]]-TODAY()>0,ISSUELIST[[#This Row],[Cheque Date]]-TODAY()&" Days to go",IF(ISSUELIST[[#This Row],[Cheque Date]]-TODAY()=0,"TODAY","")))) ->  | K107: =IF(ISSUELIST[[#This Row],[Cheque Date]]="","",IF(ISSUELIST[[#This Row],[Post Date]]="","",ISSUELIST[[#This Row],[Cheque Date]]-ISSUELIST[[#This Row],[Post Date]])) -> 
B108: =IF(ISSUELIST[[#This Row],[Company Name]]="","", COUNTIF( INDEX(ISSUELIST[Company Name],1) : ISSUELIST[[#This Row],[Company Name]], "<>" ) ) ->  | J108: =IF(ISSUELIST[[#This Row],[Cheque Date]]="","",IF(ISSUELIST[[#This Row],[Post Date]]>ISSUELIST[[#This Row],[Cheque Date]],"INVALID DATE",IF(ISSUELIST[[#This Row],[Cheque Date]]-TODAY()>0,ISSUELIST[[#This Row],[Cheque Date]]-TODAY()&" Days to go",IF(ISSUELIST[[#This Row],[Cheque Date]]-TODAY()=0,"TODAY","")))) ->  | K108: =IF(ISSUELIST[[#This Row],[Cheque Date]]="","",IF(ISSUELIST[[#This Row],[Post Date]]="","",ISSUELIST[[#This Row],[Cheque Date]]-ISSUELIST[[#This Row],[Post Date]])) -> 
B109: =IF(ISSUELIST[[#This Row],[Company Name]]="","", COUNTIF( INDEX(ISSUELIST[Company Name],1) : ISSUELIST[[#This Row],[Company Name]], "<>" ) ) ->  | J109: =IF(ISSUELIST[[#This Row],[Cheque Date]]="","",IF(ISSUELIST[[#This Row],[Post Date]]>ISSUELIST[[#This Row],[Cheque Date]],"INVALID DATE",IF(ISSUELIST[[#This Row],[Cheque Date]]-TODAY()>0,ISSUELIST[[#This Row],[Cheque Date]]-TODAY()&" Days to go",IF(ISSUELIST[[#This Row],[Cheque Date]]-TODAY()=0,"TODAY","")))) ->  | K109: =IF(ISSUELIST[[#This Row],[Cheque Date]]="","",IF(ISSUELIST[[#This Row],[Post Date]]="","",ISSUELIST[[#This Row],[Cheque Date]]-ISSUELIST[[#This Row],[Post Date]])) -> 
B110: =IF(ISSUELIST[[#This Row],[Company Name]]="","", COUNTIF( INDEX(ISSUELIST[Company Name],1) : ISSUELIST[[#This Row],[Company Name]], "<>" ) ) ->  | J110: =IF(ISSUELIST[[#This Row],[Cheque Date]]="","",IF(ISSUELIST[[#This Row],[Post Date]]>ISSUELIST[[#This Row],[Cheque Date]],"INVALID DATE",IF(ISSUELIST[[#This Row],[Cheque Date]]-TODAY()>0,ISSUELIST[[#This Row],[Cheque Date]]-TODAY()&" Days to go",IF(ISSUELIST[[#This Row],[Cheque Date]]-TODAY()=0,"TODAY","")))) ->  | K110: =IF(ISSUELIST[[#This Row],[Cheque Date]]="","",IF(ISSUELIST[[#This Row],[Post Date]]="","",ISSUELIST[[#This Row],[Cheque Date]]-ISSUELIST[[#This Row],[Post Date]])) -> 
B111: =IF(ISSUELIST[[#This Row],[Company Name]]="","", COUNTIF( INDEX(ISSUELIST[Company Name],1) : ISSUELIST[[#This Row],[Company Name]], "<>" ) ) ->  | J111: =IF(ISSUELIST[[#This Row],[Cheque Date]]="","",IF(ISSUELIST[[#This Row],[Post Date]]>ISSUELIST[[#This Row],[Cheque Date]],"INVALID DATE",IF(ISSUELIST[[#This Row],[Cheque Date]]-TODAY()>0,ISSUELIST[[#This Row],[Cheque Date]]-TODAY()&" Days to go",IF(ISSUELIST[[#This Row],[Cheque Date]]-TODAY()=0,"TODAY","")))) ->  | K111: =IF(ISSUELIST[[#This Row],[Cheque Date]]="","",IF(ISSUELIST[[#This Row],[Post Date]]="","",ISSUELIST[[#This Row],[Cheque Date]]-ISSUELIST[[#This Row],[Post Date]])) -> 
B112: =IF(ISSUELIST[[#This Row],[Company Name]]="","", COUNTIF( INDEX(ISSUELIST[Company Name],1) : ISSUELIST[[#This Row],[Company Name]], "<>" ) ) ->  | J112: =IF(ISSUELIST[[#This Row],[Cheque Date]]="","",IF(ISSUELIST[[#This Row],[Post Date]]>ISSUELIST[[#This Row],[Cheque Date]],"INVALID DATE",IF(ISSUELIST[[#This Row],[Cheque Date]]-TODAY()>0,ISSUELIST[[#This Row],[Cheque Date]]-TODAY()&" Days to go",IF(ISSUELIST[[#This Row],[Cheque Date]]-TODAY()=0,"TODAY","")))) ->  | K112: =IF(ISSUELIST[[#This Row],[Cheque Date]]="","",IF(ISSUELIST[[#This Row],[Post Date]]="","",ISSUELIST[[#This Row],[Cheque Date]]-ISSUELIST[[#This Row],[Post Date]])) -> 
B113: =IF(ISSUELIST[[#This Row],[Company Name]]="","", COUNTIF( INDEX(ISSUELIST[Company Name],1) : ISSUELIST[[#This Row],[Company Name]], "<>" ) ) ->  | J113: =IF(ISSUELIST[[#This Row],[Cheque Date]]="","",IF(ISSUELIST[[#This Row],[Post Date]]>ISSUELIST[[#This Row],[Cheque Date]],"INVALID DATE",IF(ISSUELIST[[#This Row],[Cheque Date]]-TODAY()>0,ISSUELIST[[#This Row],[Cheque Date]]-TODAY()&" Days to go",IF(ISSUELIST[[#This Row],[Cheque Date]]-TODAY()=0,"TODAY","")))) ->  | K113: =IF(ISSUELIST[[#This Row],[Cheque Date]]="","",IF(ISSUELIST[[#This Row],[Post Date]]="","",ISSUELIST[[#This Row],[Cheque Date]]-ISSUELIST[[#This Row],[Post Date]])) -> 
B114: =IF(ISSUELIST[[#This Row],[Company Name]]="","", COUNTIF( INDEX(ISSUELIST[Company Name],1) : ISSUELIST[[#This Row],[Company Name]], "<>" ) ) ->  | J114: =IF(ISSUELIST[[#This Row],[Cheque Date]]="","",IF(ISSUELIST[[#This Row],[Post Date]]>ISSUELIST[[#This Row],[Cheque Date]],"INVALID DATE",IF(ISSUELIST[[#This Row],[Cheque Date]]-TODAY()>0,ISSUELIST[[#This Row],[Cheque Date]]-TODAY()&" Days to go",IF(ISSUELIST[[#This Row],[Cheque Date]]-TODAY()=0,"TODAY","")))) ->  | K114: =IF(ISSUELIST[[#This Row],[Cheque Date]]="","",IF(ISSUELIST[[#This Row],[Post Date]]="","",ISSUELIST[[#This Row],[Cheque Date]]-ISSUELIST[[#This Row],[Post Date]])) -> 
B115: =IF(ISSUELIST[[#This Row],[Company Name]]="","", COUNTIF( INDEX(ISSUELIST[Company Name],1) : ISSUELIST[[#This Row],[Company Name]], "<>" ) ) ->  | J115: =IF(ISSUELIST[[#This Row],[Cheque Date]]="","",IF(ISSUELIST[[#This Row],[Post Date]]>ISSUELIST[[#This Row],[Cheque Date]],"INVALID DATE",IF(ISSUELIST[[#This Row],[Cheque Date]]-TODAY()>0,ISSUELIST[[#This Row],[Cheque Date]]-TODAY()&" Days to go",IF(ISSUELIST[[#This Row],[Cheque Date]]-TODAY()=0,"TODAY","")))) ->  | K115: =IF(ISSUELIST[[#This Row],[Cheque Date]]="","",IF(ISSUELIST[[#This Row],[Post Date]]="","",ISSUELIST[[#This Row],[Cheque Date]]-ISSUELIST[[#This Row],[Post Date]])) -> 
B116: =IF(ISSUELIST[[#This Row],[Company Name]]="","", COUNTIF( INDEX(ISSUELIST[Company Name],1) : ISSUELIST[[#This Row],[Company Name]], "<>" ) ) ->  | J116: =IF(ISSUELIST[[#This Row],[Cheque Date]]="","",IF(ISSUELIST[[#This Row],[Post Date]]>ISSUELIST[[#This Row],[Cheque Date]],"INVALID DATE",IF(ISSUELIST[[#This Row],[Cheque Date]]-TODAY()>0,ISSUELIST[[#This Row],[Cheque Date]]-TODAY()&" Days to go",IF(ISSUELIST[[#This Row],[Cheque Date]]-TODAY()=0,"TODAY","")))) ->  | K116: =IF(ISSUELIST[[#This Row],[Cheque Date]]="","",IF(ISSUELIST[[#This Row],[Post Date]]="","",ISSUELIST[[#This Row],[Cheque Date]]-ISSUELIST[[#This Row],[Post Date]])) -> 
B117: =IF(ISSUELIST[[#This Row],[Company Name]]="","", COUNTIF( INDEX(ISSUELIST[Company Name],1) : ISSUELIST[[#This Row],[Company Name]], "<>" ) ) ->  | J117: =IF(ISSUELIST[[#This Row],[Cheque Date]]="","",IF(ISSUELIST[[#This Row],[Post Date]]>ISSUELIST[[#This Row],[Cheque Date]],"INVALID DATE",IF(ISSUELIST[[#This Row],[Cheque Date]]-TODAY()>0,ISSUELIST[[#This Row],[Cheque Date]]-TODAY()&" Days to go",IF(ISSUELIST[[#This Row],[Cheque Date]]-TODAY()=0,"TODAY","")))) ->  | K117: =IF(ISSUELIST[[#This Row],[Cheque Date]]="","",IF(ISSUELIST[[#This Row],[Post Date]]="","",ISSUELIST[[#This Row],[Cheque Date]]-ISSUELIST[[#This Row],[Post Date]])) -> 
B118: =IF(ISSUELIST[[#This Row],[Company Name]]="","", COUNTIF( INDEX(ISSUELIST[Company Name],1) : ISSUELIST[[#This Row],[Company Name]], "<>" ) ) ->  | J118: =IF(ISSUELIST[[#This Row],[Cheque Date]]="","",IF(ISSUELIST[[#This Row],[Post Date]]>ISSUELIST[[#This Row],[Cheque Date]],"INVALID DATE",IF(ISSUELIST[[#This Row],[Cheque Date]]-TODAY()>0,ISSUELIST[[#This Row],[Cheque Date]]-TODAY()&" Days to go",IF(ISSUELIST[[#This Row],[Cheque Date]]-TODAY()=0,"TODAY","")))) ->  | K118: =IF(ISSUELIST[[#This Row],[Cheque Date]]="","",IF(ISSUELIST[[#This Row],[Post Date]]="","",ISSUELIST[[#This Row],[Cheque Date]]-ISSUELIST[[#This Row],[Post Date]])) -> 
B119: =IF(ISSUELIST[[#This Row],[Company Name]]="","", COUNTIF( INDEX(ISSUELIST[Company Name],1) : ISSUELIST[[#This Row],[Company Name]], "<>" ) ) ->  | J119: =IF(ISSUELIST[[#This Row],[Cheque Date]]="","",IF(ISSUELIST[[#This Row],[Post Date]]>ISSUELIST[[#This Row],[Cheque Date]],"INVALID DATE",IF(ISSUELIST[[#This Row],[Cheque Date]]-TODAY()>0,ISSUELIST[[#This Row],[Cheque Date]]-TODAY()&" Days to go",IF(ISSUELIST[[#This Row],[Cheque Date]]-TODAY()=0,"TODAY","")))) ->  | K119: =IF(ISSUELIST[[#This Row],[Cheque Date]]="","",IF(ISSUELIST[[#This Row],[Post Date]]="","",ISSUELIST[[#This Row],[Cheque Date]]-ISSUELIST[[#This Row],[Post Date]])) -> 
B120: =IF(ISSUELIST[[#This Row],[Company Name]]="","", COUNTIF( INDEX(ISSUELIST[Company Name],1) : ISSUELIST[[#This Row],[Company Name]], "<>" ) ) ->  | J120: =IF(ISSUELIST[[#This Row],[Cheque Date]]="","",IF(ISSUELIST[[#This Row],[Post Date]]>ISSUELIST[[#This Row],[Cheque Date]],"INVALID DATE",IF(ISSUELIST[[#This Row],[Cheque Date]]-TODAY()>0,ISSUELIST[[#This Row],[Cheque Date]]-TODAY()&" Days to go",IF(ISSUELIST[[#This Row],[Cheque Date]]-TODAY()=0,"TODAY","")))) ->  | K120: =IF(ISSUELIST[[#This Row],[Cheque Date]]="","",IF(ISSUELIST[[#This Row],[Post Date]]="","",ISSUELIST[[#This Row],[Cheque Date]]-ISSUELIST[[#This Row],[Post Date]])) -> 
E122: =SUBTOTAL(9,ISSUELIST[Amount]) -> 1131359

Sheet REPORT
B6: SUBTOTAL | D6: =SUBTOTAL(9,REPORT!$D$8:$D$29) -> 1131359 | E6: =SUBTOTAL(9,REPORT!$E$8:$E$29) -> 38 | G6: YEAR | H6: 2025
B7: S.No. | C7: Name | D7: Total Amount | E7: Count of Cheques | G7: MONTH | H7: Aug
B8: =IF(REPORT!$C8="","", COUNTIF( INDEX(REPORT!$C$8:$C$29,1) : REPORT!$C8, "<>" ) ) -> 1 | C8: Smart Computers | D8: =IF(REPORT!$C8="","",SUMIFS(ISSUELIST[Amount],ISSUELIST[Company Name],REPORT!$C8)) -> 15598 | E8: =IF(REPORT!$C8="","",COUNTIF(ISSUELIST[Company Name],REPORT!$C8)) -> 1 | G8: =DATEVALUE("1"&$H$7&$H$6) -> 2025-08-01 | I8: =IF(SUMPRODUCT( (TEXT(ISSUELIST[Cheque Date],"MMYYYY")=TEXT(REPORT!G8,"MMYYYY")) * ISSUELIST[Amount])=0,"",SUMPRODUCT( (TEXT(ISSUELIST[Cheque Date],"MMYYYY")=TEXT(REPORT!G8,"MMYYYY")) * ISSUELIST[Amount])) -> 
B9: =IF(REPORT!$C9="","", COUNTIF( INDEX(REPORT!$C$8:$C$29,1) : REPORT!$C9, "<>" ) ) -> 2 | C9: City Supermarket | D9: =IF(REPORT!$C9="","",SUMIFS(ISSUELIST[Amount],ISSUELIST[Company Name],REPORT!$C9)) -> 183756 | E9: =IF(REPORT!$C9="","",COUNTIF(ISSUELIST[Company Name],REPORT!$C9)) -> 6
B10: =IF(REPORT!$C10="","", COUNTIF( INDEX(REPORT!$C$8:$C$29,1) : REPORT!$C10, "<>" ) ) -> 3 | C10: New Fashion Corner | D10: =IF(REPORT!$C10="","",SUMIFS(ISSUELIST[Amount],ISSUELIST[Company Name],REPORT!$C10)) -> 76458 | E10: =IF(REPORT!$C10="","",COUNTIF(ISSUELIST[Company Name],REPORT!$C10)) -> 5 | G10: MONTH WISE REOPRT | I10: CHEQUE AMOUNT
B11: =IF(REPORT!$C11="","", COUNTIF( INDEX(REPORT!$C$8:$C$29,1) : REPORT!$C11, "<>" ) ) -> 4 | C11: Sai Stationery | D11: =IF(REPORT!$C11="","",SUMIFS(ISSUELIST[Amount],ISSUELIST[Company Name],REPORT!$C11)) -> 126171 | E11: =IF(REPORT!$C11="","",COUNTIF(ISSUELIST[Company Name],REPORT!$C11)) -> 3 | G11: =EDATE(DATEVALUE("1 " & $H$7 & " " & $H$6),1) -> 2025-09-01 | I11: =IF(SUMPRODUCT( (TEXT(ISSUELIST[Cheque Date],"MMYYYY")=TEXT(REPORT!G11,"MMYYYY")) * ISSUELIST[Amount])=0,"",SUMPRODUCT( (TEXT(ISSUELIST[Cheque Date],"MMYYYY")=TEXT(REPORT!G11,"MMYYYY")) * ISSUELIST[Amount])) -> 15598
B12: =IF(REPORT!$C12="","", COUNTIF( INDEX(REPORT!$C$8:$C$29,1) : REPORT!$C12, "<>" ) ) -> 5 | C12: Shanti Hardware | D12: =IF(REPORT!$C12="","",SUMIFS(ISSUELIST[Amount],ISSUELIST[Company Name],REPORT!$C12)) -> 133818 | E12: =IF(REPORT!$C12="","",COUNTIF(ISSUELIST[Company Name],REPORT!$C12)) -> 4 | G12: =EDATE(DATEVALUE("1 " & $H$7 & " " & $H$6),2) -> 2025-10-01 | I12: =IF(SUMPRODUCT( (TEXT(ISSUELIST[Cheque Date],"MMYYYY")=TEXT(REPORT!G12,"MMYYYY")) * ISSUELIST[Amount])=0,"",SUMPRODUCT( (TEXT(ISSUELIST[Cheque Date],"MMYYYY")=TEXT(REPORT!G12,"MMYYYY")) * ISSUELIST[Amount])) -> 
B13: =IF(REPORT!$C13="","", COUNTIF( INDEX(REPORT!$C$8:$C$29,1) : REPORT!$C13, "<>" ) ) -> 6 | C13: HAPPY STORE | D13: =IF(REPORT!$C13="","",SUMIFS(ISSUELIST[Amount],ISSUELIST[Company Name],REPORT!$C13)) -> 26274 | E13: =IF(REPORT!$C13="","",COUNTIF(ISSUELIST[Company Name],REPORT!$C13)) -> 1 | G13: =EDATE(DATEVALUE("1 " & $H$7 & " " & $H$6),3) -> 2025-11-01 | I13: =IF(SUMPRODUCT( (TEXT(ISSUELIST[Cheque Date],"MMYYYY")=TEXT(REPORT!G13,"MMYYYY")) * ISSUELIST[Amount])=0,"",SUMPRODUCT( (TEXT(ISSUELIST[Cheque Date],"MMYYYY")=TEXT(REPORT!G13,"MMYYYY")) * ISSUELIST[Amount])) -> 1061313
B14: =IF(REPORT!$C14="","", COUNTIF( INDEX(REPORT!$C$8:$C$29,1) : REPORT!$C14, "<>" ) ) -> 7 | C14: Om Electronics | D14: =IF(REPORT!$C14="","",SUMIFS(ISSUELIST[Amount],ISSUELIST[Company Name],REPORT!$C14)) -> 85965 | E14: =IF(REPORT!$C14="","",COUNTIF(ISSUELIST[Company Name],REPORT!$C14)) -> 2 | G14: =EDATE(DATEVALUE("1 " & $H$7 & " " & $H$6),4) -> 2025-12-01 | I14: =IF(SUMPRODUCT( (TEXT(ISSUELIST[Cheque Date],"MMYYYY")=TEXT(REPORT!G14,"MMYYYY")) * ISSUELIST[Amount])=0,"",SUMPRODUCT( (TEXT(ISSUELIST[Cheque Date],"MMYYYY")=TEXT(REPORT!G14,"MMYYYY")) * ISSUELIST[Amount])) -> 54448
B15: =IF(REPORT!$C15="","", COUNTIF( INDEX(REPORT!$C$8:$C$29,1) : REPORT!$C15, "<>" ) ) -> 8 | C15: Sunrise Bakery | D15: =IF(REPORT!$C15="","",SUMIFS(ISSUELIST[Amount],ISSUELIST[Company Name],REPORT!$C15)) -> 78941 | E15: =IF(REPORT!$C15="","",COUNTIF(ISSUELIST[Company Name],REPORT!$C15)) -> 2 | G15: =EDATE(DATEVALUE("1 " & $H$7 & " " & $H$6),5) -> 2026-01-01 | I15: =IF(SUMPRODUCT( (TEXT(ISSUELIST[Cheque Date],"MMYYYY")=TEXT(REPORT!G15,"MMYYYY")) * ISSUELIST[Amount])=0,"",SUMPRODUCT( (TEXT(ISSUELIST[Cheque Date],"MMYYYY")=TEXT(REPORT!G15,"MMYYYY")) * ISSUELIST[Amount])) -> 
B16: =IF(REPORT!$C16="","", COUNTIF( INDEX(REPORT!$C$8:$C$29,1) : REPORT!$C16, "<>" ) ) -> 9 | C16: Janta Medical Store | D16: =IF(REPORT!$C16="","",SUMIFS(ISSUELIST[Amount],ISSUELIST[Company Name],REPORT!$C16)) -> 14712 | E16: =IF(REPORT!$C16="","",COUNTIF(ISSUELIST[Company Name],REPORT!$C16)) -> 1 | G16: =EDATE(DATEVALUE("1 " & $H$7 & " " & $H$6),6) -> 2026-02-01 | I16: =IF(SUMPRODUCT( (TEXT(ISSUELIST[Cheque Date],"MMYYYY")=TEXT(REPORT!G16,"MMYYYY")) * ISSUELIST[Amount])=0,"",SUMPRODUCT( (TEXT(ISSUELIST[Cheque Date],"MMYYYY")=TEXT(REPORT!G16,"MMYYYY")) * ISSUELIST[Amount])) -> 
B17: =IF(REPORT!$C17="","", COUNTIF( INDEX(REPORT!$C$8:$C$29,1) : REPORT!$C17, "<>" ) ) -> 10 | C17: SADHU | D17: =IF(REPORT!$C17="","",SUMIFS(ISSUELIST[Amount],ISSUELIST[Company Name],REPORT!$C17)) -> 18323 | E17: =IF(REPORT!$C17="","",COUNTIF(ISSUELIST[Company Name],REPORT!$C17)) -> 1 | G17: =EDATE(DATEVALUE("1 " & $H$7 & " " & $H$6),7) -> 2026-03-01 | I17: =IF(SUMPRODUCT( (TEXT(ISSUELIST[Cheque Date],"MMYYYY")=TEXT(REPORT!G17,"MMYYYY")) * ISSUELIST[Amount])=0,"",SUMPRODUCT( (TEXT(ISSUELIST[Cheque Date],"MMYYYY")=TEXT(REPORT!G17,"MMYYYY")) * ISSUELIST[Amount])) -> 
B18: =IF(REPORT!$C18="","", COUNTIF( INDEX(REPORT!$C$8:$C$29,1) : REPORT!$C18, "<>" ) ) -> 11 | C18: Maa Kali Jewellery | D18: =IF(REPORT!$C18="","",SUMIFS(ISSUELIST[Amount],ISSUELIST[Company Name],REPORT!$C18)) -> 98154 | E18: =IF(REPORT!$C18="","",COUNTIF(ISSUELIST[Company Name],REPORT!$C18)) -> 3 | G18: =EDATE(DATEVALUE("1 " & $H$7 & " " & $H$6),8) -> 2026-04-01 | I18: =IF(SUMPRODUCT( (TEXT(ISSUELIST[Cheque Date],"MMYYYY")=TEXT(REPORT!G18,"MMYYYY")) * ISSUELIST[Amount])=0,"",SUMPRODUCT( (TEXT(ISSUELIST[Cheque Date],"MMYYYY")=TEXT(REPORT!G18,"MMYYYY")) * ISSUELIST[Amount])) -> 
B19: =IF(REPORT!$C19="","", COUNTIF( INDEX(REPORT!$C$8:$C$29,1) : REPORT!$C19, "<>" ) ) -> 12 | C19: Krishna Dairy | D19: =IF(REPORT!$C19="","",SUMIFS(ISSUELIST[Amount],ISSUELIST[Company Name],REPORT!$C19)) -> 98139 | E19: =IF(REPORT!$C19="","",COUNTIF(ISSUELIST[Company Name],REPORT!$C19)) -> 3 | G19: =EDATE(DATEVALUE("1 " & $H$7 & " " & $H$6),9) -> 2026-05-01 | I19: =IF(SUMPRODUCT( (TEXT(ISSUELIST[Cheque Date],"MMYYYY")=TEXT(REPORT!G19,"MMYYYY")) * ISSUELIST[Amount])=0,"",SUMPRODUCT( (TEXT(ISSUELIST[Cheque Date],"MMYYYY")=TEXT(REPORT!G19,"MMYYYY")) * ISSUELIST[Amount])) -> 
B20: =IF(REPORT!$C20="","", COUNTIF( INDEX(REPORT!$C$8:$C$29,1) : REPORT!$C20, "<>" ) ) -> 13 | C20: Classic Tailors | D20: =IF(REPORT!$C20="","",SUMIFS(ISSUELIST[Amount],ISSUELIST[Company Name],REPORT!$C20)) -> 80591 | E20: =IF(REPORT!$C20="","",COUNTIF(ISSUELIST[Company Name],REPORT!$C20)) -> 2 | G20: =EDATE(DATEVALUE("1 " & $H$7 & " " & $H$6),10) -> 2026-06-01 | I20: =IF(SUMPRODUCT( (TEXT(ISSUELIST[Cheque Date],"MMYYYY")=TEXT(REPORT!G20,"MMYYYY")) * ISSUELIST[Amount])=0,"",SUMPRODUCT( (TEXT(ISSUELIST[Cheque Date],"MMYYYY")=TEXT(REPORT!G20,"MMYYYY")) * ISSUELIST[Amount])) -> 
B21: =IF(REPORT!$C21="","", COUNTIF( INDEX(REPORT!$C$8:$C$29,1) : REPORT!$C21, "<>" ) ) -> 14 | C21: DFHFJM | D21: =IF(REPORT!$C21="","",SUMIFS(ISSUELIST[Amount],ISSUELIST[Company Name],REPORT!$C21)) -> 43889 | E21: =IF(REPORT!$C21="","",COUNTIF(ISSUELIST[Company Name],REPORT!$C21)) -> 2 | G21: =EDATE(DATEVALUE("1 " & $H$7 & " " & $H$6),11) -> 2026-07-01 | I21: =IF(SUMPRODUCT( (TEXT(ISSUELIST[Cheque Date],"MMYYYY")=TEXT(REPORT!G21,"MMYYYY")) * ISSUELIST[Amount])=0,"",SUMPRODUCT( (TEXT(ISSUELIST[Cheque Date],"MMYYYY")=TEXT(REPORT!G21,"MMYYYY")) * ISSUELIST[Amount])) -> 
B22: =IF(REPORT!$C22="","", COUNTIF( INDEX(REPORT!$C$8:$C$29,1) : REPORT!$C22, "<>" ) ) -> 15 | C22: Jagannath Fruits & Juice | D22: =IF(REPORT!$C22="","",SUMIFS(ISSUELIST[Amount],ISSUELIST[Company Name],REPORT!$C22)) -> 44292 | E22: =IF(REPORT!$C22="","",COUNTIF(ISSUELIST[Company Name],REPORT!$C22)) -> 1 | G22: ="SUB TOTAL FROM "&TEXT(G8,"mmM-yyyy")&" TO "&TEXT(G21,"mmM-yyyy") -> SUB TOTAL FROM Aug-2025 TO Jul-2026 | I22: =SUM(I11:I21,I8) -> 1131359
B23: =IF(REPORT!$C23="","", COUNTIF( INDEX(REPORT!$C$8:$C$29,1) : REPORT!$C23, "<>" ) ) -> 16 | C23: Modern Footwear | D23: =IF(REPORT!$C23="","",SUMIFS(ISSUELIST[Amount],ISSUELIST[Company Name],REPORT!$C23)) -> 6278 | E23: =IF(REPORT!$C23="","",COUNTIF(ISSUELIST[Company Name],REPORT!$C23)) -> 1
B24: =IF(REPORT!$C24="","", COUNTIF( INDEX(REPORT!$C$8:$C$29,1) : REPORT!$C24, "<>" ) ) ->  | D24: =IF(REPORT!$C24="","",SUMIFS(ISSUELIST[Amount],ISSUELIST[Company Name],REPORT!$C24)) ->  | E24: =IF(REPORT!$C24="","",COUNTIF(ISSUELIST[Company Name],REPORT!$C24)) -> 
B25: =IF(REPORT!$C25="","", COUNTIF( INDEX(REPORT!$C$8:$C$29,1) : REPORT!$C25, "<>" ) ) ->  | D25: =IF(REPORT!$C25="","",SUMIFS(ISSUELIST[Amount],ISSUELIST[Company Name],REPORT!$C25)) ->  | E25: =IF(REPORT!$C25="","",COUNTIF(ISSUELIST[Company Name],REPORT!$C25)) -> 
B26: =IF(REPORT!$C26="","", COUNTIF( INDEX(REPORT!$C$8:$C$29,1) : REPORT!$C26, "<>" ) ) ->  | D26: =IF(REPORT!$C26="","",SUMIFS(ISSUELIST[Amount],ISSUELIST[Company Name],REPORT!$C26)) ->  | E26: =IF(REPORT!$C26="","",COUNTIF(ISSUELIST[Company Name],REPORT!$C26)) -> 
B27: =IF(REPORT!$C27="","", COUNTIF( INDEX(REPORT!$C$8:$C$29,1) : REPORT!$C27, "<>" ) ) ->  | D27: =IF(REPORT!$C27="","",SUMIFS(ISSUELIST[Amount],ISSUELIST[Company Name],REPORT!$C27)) ->  | E27: =IF(REPORT!$C27="","",COUNTIF(ISSUELIST[Company Name],REPORT!$C27)) -> 
B28: =IF(REPORT!$C28="","", COUNTIF( INDEX(REPORT!$C$8:$C$29,1) : REPORT!$C28, "<>" ) ) ->  | D28: =IF(REPORT!$C28="","",SUMIFS(ISSUELIST[Amount],ISSUELIST[Company Name],REPORT!$C28)) ->  | E28: =IF(REPORT!$C28="","",COUNTIF(ISSUELIST[Company Name],REPORT!$C28)) -> 
B29: =IF(REPORT!$C29="","", COUNTIF( INDEX(REPORT!$C$8:$C$29,1) : REPORT!$C29, "<>" ) ) ->  | D29: =IF(REPORT!$C29="","",SUMIFS(ISSUELIST[Amount],ISSUELIST[Company Name],REPORT!$C29)) ->  | E29: =IF(REPORT!$C29="","",COUNTIF(ISSUELIST[Company Name],REPORT!$C29)) -> 
B31: SUB TOTAL | D31: =SUM(REPORT!$D$8:$D$29) -> 1131359 | E31: =SUM(REPORT!$E$8:$E$29) -> 38
B32: =NumberToWords(D31) -> Eleven Lakh Thirty One Thousand Three Hundred Fifty Nine

Sheet HELP
B5: Use instructions …….
AW9: Please insert the cheque carefully into the printer’s tray in the correct position, exactly as shown in the image below, to ensure accurate printing without alignment or format issues.
K11: VIDEO TUTORIAL | Q11: : | R11: =HYPERLINK(C49,"Watch Video") -> Watch Video
K12: OUR WEB SITE | Q12: : | R12: =HYPERLINK(C48,"mcprint.in") -> mcprint.in
K13: CALL SUPPORT | Q13: : | R13: 7406468094
K14: WHATSAPP | Q14: : | R14: =HYPERLINK("https://wa.me/"&91&R13,"CONNECT VIA WHATSAPP") -> CONNECT VIA WHATSAPP
K15: EMAIL SUPPORT | Q15: : | R15: mcprintoffical@gmail.com
I17: Note: If you face any difficulty in using this software MY CHEQUE PRINT, please feel free to contact us by phone, WhatsApp, or email at the details mentioned above. Our team will be happy to assist you.
C48: https://www.youtube.com/watch?v=AAaeOZPtTk0
C49: https://www.youtube.com/@bijilibali

Sheet ABOUT
W5: Introduction to My Cheque Print
G7: My Cheque Print is a simple and powerful Excel-based software designed to make cheque printing effortless. Whether you need to print cheques for personal use or business, this tool allows you to customize layouts according to any bank’s format. With options to change fonts, and rearrange details, every cheque looks professional and accurate. Built with user-friendliness in mind, My Cheque Print requires no technical knowledge—just open Excel, enter your details, and print. It helps you save time, reduce errors, and keep your cheque management organized and reliable.
AB15: Feature/Description
C17: ➤ | D17: My Cheque Print is an Excel-based cheque printing software designed for simplicity and efficiency. | AH17: ➤ | AI17: Crossed cheques and bearer cheques are fully supported.
C18: ➤ | D18: The software is fully customizable to meet your unique business needs. | AH18: ➤ | AI18: Printing cheques becomes quick, easy, and saves valuable time.
C19: ➤ | D19: It allows you to print cheques for all banks directly from a single platform. | AH19: ➤ | AI19: The software ensures a clean, professional appearance on every cheque.
C20: ➤ | D20: Payment analytics are built into the software to help you track your transactions easily. | AH20: ➤ | AI20: It is compatible with all standard printers, providing flexibility in printing options.
C21: ➤ | D21: You can manage all issued cheques from one centralized dashboard. | AH21: ➤ | AI21: Immediate support is available via call if any assistance is required.
C22: ➤ | D22: The software maintains a complete history of all cheques issued for future reference. | AH22: ➤ | AI22: The software helps streamline your payment workflow efficiently.
C23: ➤ | D23: Every cheque is printed accurately, reducing errors and mistakes. | AH23: ➤ | AI23: It eliminates the need to maintain multiple software tools for cheque printing.
C24: ➤ | D24: Smudges, overwriting, and printing defects are completely avoided. | AH24: ➤ | AI24: Users can quickly switch between different cheque types without confusion.
C25: ➤ | D25: It supports normal cheques, post-dated cheques, and blank cheques for versatile use. | AH25: ➤ | AI25: The Excel base ensures lightweight operation without slowing your computer.
C26: ➤ | D26: Users can personalize font size and style according to preference. | AH26: ➤ | AI26: It is suitable for both small businesses and large enterprises.
C27: ➤ | D27: Text color customization is available to match your professional style. | AH27: ➤ | AI27: My Cheque Print simplifies financial record-keeping and auditing.
C28: ➤ | D28: My Cheque Print does not require installation—just open and start working. | AH28: ➤ | AI28: Overall, it is a smart, reliable, and professional solution for all cheque printing needs.
C29: ➤ | D29: The interface is simple, making it easy for anyone to understand, even without technical knowledge.
AA39: SADHU CHARAN SAHU
AA40: BBSR,ODISHA,BJBNAGAR
AB41: =HELP!R13 -> 7406468094

Sheet programing
B4: S.No. | C4: ='PRINT CHEQUE'!$R$7 -> 5 | Q4: =IF($Q$29=TRUE,IF($C$7="not found","Amount not found",IF($AS$4=TRUE,'PRINT CHEQUE'!W5&" "&NumberToWords($C$7)&" "&'PRINT CHEQUE'!AA5,NumberToWords($C$7))),$U$29) -> ** Forty Five Thousand Three Hundred One Only /- | AP4: =LEN(Q4) -> 48 | AS4: TRUE
B5: Cheque Date | C5: =IF($Q$29=TRUE,IFERROR(VLOOKUP(C4,ISSUELIST[#All],2,FALSE),"Notfound"),$AO$29) -> 2025-11-27 | Q5: =MID(TEXT($C$5,"DDMMYYYY"),1,1) -> 2 | R5: =MID(TEXT($C$5,"DDMMYYYY"),2,1) -> 7 | S5: =MID(TEXT($C$5,"DDMMYYYY"),3,1) -> 1 | T5: =MID(TEXT($C$5,"DDMMYYYY"),4,1) -> 1 | U5: =MID(TEXT($C$5,"DDMMYYYY"),5,1) -> 2 | V5: =MID(TEXT($C$5,"DDMMYYYY"),6,1) -> 0 | W5: =MID(TEXT($C$5,"DDMMYYYY"),7,1) -> 2 | X5: =MID(TEXT($C$5,"DDMMYYYY"),8,1) -> 5
B6: Company Name | C6: =IF($Q$29=TRUE,IFERROR(VLOOKUP($C$4,ISSUELIST[#All],3,FALSE),"Not found"),$U$29) -> Shanti Hardware | Q6: =IF(C6="Not found","Not found",IF($AS$6=TRUE,'PRINT CHEQUE'!$W$3&" "&programing!$C$6&" "&'PRINT CHEQUE'!$AA$3,programing!$C$6)) -> ** Shanti Hardware ** | AS6: TRUE
B7: Amount | C7: =IFERROR(VLOOKUP($C$4,ISSUELIST[#All],4,FALSE),"Not found") -> 45301 | Q7: =LEFT(Q4,IFERROR(FIND(" ",Q4,'PRINT CHEQUE'!X10),LEN(Q4))) -> ** Forty Five Thousand Three Hundred One Only /- | AK7: =IF($Q$29=TRUE,IF($C$7="Not found","Not found",IF($AS$7=TRUE,'PRINT CHEQUE'!$W$4&" "&TEXT($C$7,"#,##,##0")&" "&'PRINT CHEQUE'!AA4,TEXT($C$7,"#,##,##0"))),$AO$29) -> ** 45,301 /- | AS7: TRUE
Q8: =TRIM(MID(Q4,IFERROR(FIND(" ",Q4,'PRINT CHEQUE'!X10),LEN(Q4))+1,LEN(Q4))) -> 
B9: Cheque Type | C9: =IFERROR(VLOOKUP($C$4,ISSUELIST[#All],5,FALSE),"Not found") -> A/c Payee | H9: style no | K9: 1 | Q9: =IF($Q$29=TRUE,IF($C$9="Not found","Not found",IF($C$9="No","",IF($AS$9=TRUE,"A/c Payee Only","A/c Payee"))),$AO$29) -> A/c Payee Only | AS9: TRUE
Q12: =IF(C9="NO","",IF(K9=1,"___________________","")) -> ___________________ | W12: =IF(C9="NO","",IF(K9=2,"___________________","")) ->  | AC12: =IF(C9="NO","",IF(K9=3,"___________________","")) ->  | AI12: =IF(C9="NO","",IF(K9=4,"___________________","")) -> 
S14: 1 | Y14: 2 | AE14: 3 | AK14: 4
Q15: __________________
B16: Cheque No. | C16: =IFERROR(VLOOKUP($C$4,ISSUELIST[#All],6,FALSE),"Not found") -> 573712
B17: Remarks | C17: =IFERROR(VLOOKUP($C$4,ISSUELIST[#All],7,FALSE),"Not found") -> Misc
B18: Post Date | C18: =IFERROR(VLOOKUP($C$4,ISSUELIST[#All],8,FALSE),"Not found") -> 2025-10-15
B19: Days to mature | C19: =IF($Q$29=TRUE,IFERROR(VLOOKUP($C$4,ISSUELIST[#All],9,FALSE),"Not found"),$AO$29) -> 50 Days to go
B20: Duration | C20: =IFERROR(VLOOKUP($C$4,ISSUELIST[#All],10,FALSE),"Not found") -> 43
B21: Beneficiary Name | C21: =IFERROR(VLOOKUP($C$4,ISSUELIST[#All],11,FALSE),"Not found") -> Manoj Sethi | Q21: =IF(C21=0,"",IF(C21="Not found","",B21)) -> Beneficiary Name | X21: =IF(C21=0,"",IF(C21="Not found","","- "&C21)) -> - Manoj Sethi
B22: A/c Type | C22: =IFERROR(VLOOKUP($C$4,ISSUELIST[#All],12,FALSE),"Not found") -> Saving A/c | Q22: A/c Type | X22: =IF(C22=0,"",IF(C22="Not found","","- "&C22)) -> - Saving A/c
B23: Beneficiary A/c No. | C23: =IFERROR(VLOOKUP($C$4,ISSUELIST[#All],13,FALSE),"Not found") -> 160860364846 | Q23: Beneficiary A/c No. | X23: - 160860364846
B24: Mobile No. | C24: =IFERROR(VLOOKUP($C$4,ISSUELIST[#All],14,FALSE),"Not found") -> 9401252671 | Q24: Mobile No. | X24: - 9401252671
B25: Bank Name | C25: =IFERROR(VLOOKUP($C$4,ISSUELIST[#All],15,FALSE),"Not found") -> Axis | Q25: Bank Name | X25: - Axis
B26: IFSC Code | C26: =IFERROR(VLOOKUP($C$4,ISSUELIST[#All],16,FALSE),"Not found") -> AXIS0278585 | Q26: =IF(C26=0,"",IF(C26="Not found","",B26)) -> IFSC Code | X26: - AXIS0278585
B27: =IF(AS27=TRUE,'PRINT BACK SIDE'!$Y$9,"") ->  | C27: =IF(AS27=TRUE,'PRINT BACK SIDE'!Y11,"") ->  | X27: =IF(C27=0,"",IF(C27="Not found","",IF(B27="","","- "&C27))) ->  | AS27: FALSE
B29: =IF(SUBSCRIBE="","LIMITATION STATUS - SUBSCRIBED","LIMITATION STATUS - TRIAL") -> LIMITATION STATUS - SUBSCRIBED | C29: =IF(C31="","",IF(SUBSCRIBED="","",IF(Q31>=0,"","TRIAL PERIOD COMPLITED"))) ->  | Q29: =IF(SUBSCRIBE="",TRUE,FALSE) -> TRUE | U29: =IF(C31="","",IF(C31<SUBSCRIBED,"Subscriptions end . Visit - "&HELP!R12&" or call "&HELP!R13,IF($Q$29=TRUE,"","Trial period completed . Visit - "&HELP!R12&" , call "&HELP!R13))) ->  | AO29: Time out
B31: LIMITATION days | C31: 3 | Q31: =C31-SUBSCRIBED -> 3 | U31: =IF(Q31<0,"",MOD(MOD(Q31,365),30)) -> 3 | Z31: =IF(Q31<0,"",INT(MOD(Q31,365)/30)) -> 0 | AE31: =IF(Q31<0,"",INT(Q31/365)) -> 0 | AJ31: pending days
Q33: =-Q31 -> -3 | U33: =IF(Q33<0,"",MOD(MOD(Q33,365),30)) ->  | Z33: =IF(Q33<0,"",INT(MOD(Q33,365)/30)) ->  | AE33: =IF(Q33<0,"",INT(Q33/365)) ->  | AJ33: days ago
Q35: =IF(C31="","",IF(C31<SUBSCRIBED,"Your Subscriptions ended "&-(Q31)&" days ago, for more help visit - "&HELP!R12&" or call "&HELP!R13,IF($Q$29=TRUE,"","Trial period completed . Visit - "&HELP!R12&" , call "&HELP!R13))) -> 
V37: =NOW() -> 2025-10-08T13:11:28.080

Sheet DASHBOARD
B2: Dashboard
E6: =NOW() -> 2025-10-08T13:11:28.080
D8: Total NO.of issued cheques | E8: Total Cheques Amount
D9: =COUNTA(ISSUELIST[Company Name]) -> 38 | E9: =SUM(ISSUELIST[Amount] ) -> 1131359
D10: Pending Cheques Count | E10: Pending Cheques Amount
D11: =COUNTIFS(ISSUELIST[Cheque Date],">="&TODAY()) -> 37 | E11: =SUMIFS(ISSUELIST[Amount],ISSUELIST[Cheque Date],">="&TODAY()) -> 1115761
D12: Cleared Cheques Count | E12: Cleared Cheques Amount
D13: =COUNTIFS(ISSUELIST[Cheque Date],"<"&TODAY()) -> 1 | E13: =SUMIFS(ISSUELIST[Amount],ISSUELIST[Cheque Date],"<"&TODAY()) -> 15598
D14: This Month Cheques Count | E14: This Month Cheques Amount
D15: =COUNTIFS(ISSUELIST[Cheque Date],">="&EOMONTH(TODAY(),-1)+1,ISSUELIST[Cheque Date],"<="&EOMONTH(TODAY(),0)) -> 0 | E15: =SUMIFS(ISSUELIST[Amount],ISSUELIST[Cheque Date],">="&EOMONTH(TODAY(),-1)+1,ISSUELIST[Cheque Date],"<="&EOMONTH(TODAY(),0)) -> 0
C17: TOP 5 HIGHEST CHEQUE AMOUNT | E17: Top 5 COMPANYS TOTAL Cheques by Amount
C18: COMPANY NAME | D18: AMOUNT | E18: COMPANY NAME | F18: AMOUNT | G18: No.Of Cheques
C19: =IFERROR(INDEX(ISSUELIST[Company Name],MATCH(LARGE(ISSUELIST[Amount],1),ISSUELIST[Amount],0)),"") -> Classic Tailors | D19: =IFERROR(LARGE(ISSUELIST[Amount],1),"") -> 48462 | E19: =IFERROR(INDEX(REPORT[Name],MATCH(LARGE(REPORT[Total Amount],1),REPORT[Total Amount],0)),"") -> City Supermarket | F19: =IFERROR(LARGE(REPORT[Total Amount],1),"") -> 183756 | G19: =IFERROR(INDEX(REPORT[Count of Cheques],MATCH(LARGE(REPORT[Total Amount],1),REPORT[Total Amount],0)),"") -> 6
C20: =IFERROR(INDEX(ISSUELIST[Company Name],MATCH(LARGE(ISSUELIST[Amount],2),ISSUELIST[Amount],0)),"") -> Maa Kali Jewellery | D20: =IFERROR(LARGE(ISSUELIST[Amount],2),"") -> 46759 | E20: =IFERROR(INDEX(REPORT[Name],MATCH(LARGE(REPORT[Total Amount],2),REPORT[Total Amount],0)),"") -> Shanti Hardware | F20: =IFERROR(LARGE(REPORT[Total Amount],2),"") -> 133818 | G20: =IFERROR(INDEX(REPORT[Count of Cheques],MATCH(LARGE(REPORT[Total Amount],2),REPORT[Total Amount],0)),"") -> 4
C21: =IFERROR(INDEX(ISSUELIST[Company Name],MATCH(LARGE(ISSUELIST[Amount],3),ISSUELIST[Amount],0)),"") -> City Supermarket | D21: =IFERROR(LARGE(ISSUELIST[Amount],3),"") -> 45602 | E21: =IFERROR(INDEX(REPORT[Name],MATCH(LARGE(REPORT[Total Amount],3),REPORT[Total Amount],0)),"") -> Sai Stationery | F21: =IFERROR(LARGE(REPORT[Total Amount],3),"") -> 126171 | G21: =IFERROR(INDEX(REPORT[Count of Cheques],MATCH(LARGE(REPORT[Total Amount],3),REPORT[Total Amount],0)),"") -> 3
C22: =IFERROR(INDEX(ISSUELIST[Company Name],MATCH(LARGE(ISSUELIST[Amount],4),ISSUELIST[Amount],0)),"") -> Shanti Hardware | D22: =IFERROR(LARGE(ISSUELIST[Amount],4),"") -> 45301 | E22: =IFERROR(INDEX(REPORT[Name],MATCH(LARGE(REPORT[Total Amount],4),REPORT[Total Amount],0)),"") -> Maa Kali Jewellery | F22: =IFERROR(LARGE(REPORT[Total Amount],4),"") -> 98154 | G22: =IFERROR(INDEX(REPORT[Count of Cheques],MATCH(LARGE(REPORT[Total Amount],4),REPORT[Total Amount],0)),"") -> 3
C23: =IFERROR(INDEX(ISSUELIST[Company Name],MATCH(LARGE(ISSUELIST[Amount],5),ISSUELIST[Amount],0)),"") -> Sai Stationery | D23: =IFERROR(LARGE(ISSUELIST[Amount],5),"") -> 44800 | E23: =IFERROR(INDEX(REPORT[Name],MATCH(LARGE(REPORT[Total Amount],5),REPORT[Total Amount],0)),"") -> Krishna Dairy | F23: =IFERROR(LARGE(REPORT[Total Amount],5),"") -> 98139 | G23: =IFERROR(INDEX(REPORT[Count of Cheques],MATCH(LARGE(REPORT[Total Amount],5),REPORT[Total Amount],0)),"") -> 3
C24: SUBTOTAL | D24: =SUM(D19:D23) -> 230924 | E24: SUB TOTAL | F24: =SUM(F19:F23) -> 640038 | G24: =SUM(G19:G23) -> 19
C26: TOP 5 LOWEST CHEQUE AMOUNT | E26: =C17 -> TOP 5 HIGHEST CHEQUE AMOUNT
C27: COMPANY NAME | D27: AMOUNT | E27: =C26 -> TOP 5 LOWEST CHEQUE AMOUNT
C28: =IFERROR(INDEX(ISSUELIST[Company Name],MATCH(SMALL(ISSUELIST[Amount],1),ISSUELIST[Amount],0)),"") -> City Supermarket | D28: =IFERROR(SMALL(ISSUELIST[Amount],1),"") -> 1499
C29: =IFERROR(INDEX(ISSUELIST[Company Name],MATCH(SMALL(ISSUELIST[Amount],2),ISSUELIST[Amount],0)),"") -> New Fashion Corner | D29: =IFERROR(SMALL(ISSUELIST[Amount],2),"") -> 5490
C30: =IFERROR(INDEX(ISSUELIST[Company Name],MATCH(SMALL(ISSUELIST[Amount],3),ISSUELIST[Amount],0)),"") -> New Fashion Corner | D30: =IFERROR(SMALL(ISSUELIST[Amount],3),"") -> 6261
C31: =IFERROR(INDEX(ISSUELIST[Company Name],MATCH(SMALL(ISSUELIST[Amount],4),ISSUELIST[Amount],0)),"") -> Modern Footwear | D31: =IFERROR(SMALL(ISSUELIST[Amount],4),"") -> 6278
C32: =IFERROR(INDEX(ISSUELIST[Company Name],MATCH(SMALL(ISSUELIST[Amount],5),ISSUELIST[Amount],0)),"") -> New Fashion Corner | D32: =IFERROR(SMALL(ISSUELIST[Amount],5),"") -> 10156
C33: SUBTOTAL | D33: =SUM(D28:D32) -> 29684
C35: TOP 5 HIGHEST CHEQUE AMOUNT
C36: COMPANY NAME | D36: AMOUNT
C37: =IF($C$35=$C$17,C19,IF($C$35=$C$26,C28,"")) -> Classic Tailors | D37: =IF($C$35=$C$17,D19,IF($C$35=$C$26,D28,"")) -> 48462
C38: =IF($C$35=$C$17,C20,IF($C$35=$C$26,C29,"")) -> Maa Kali Jewellery | D38: 46759
C39: City Supermarket | D39: 45602
C40: Shanti Hardware | D40: 45301
C41: Sai Stationery | D41: 44800
C42: SUBTOTAL | D42: =SUM(D37:D41) -> 230924
C44: Upcoming Cheques: Total Amount & Number
C45: DAYS | D45: Amounts | E45: No.Of Cheques
C46: TODAY | D46: =SUMIFS(ISSUELIST[Amount],ISSUELIST[Cheque Date],TODAY()) -> 0 | E46: =COUNTIFS(ISSUELIST[Cheque Date],TODAY()) -> 0
C47: TOMORROW | D47: =SUMIFS(ISSUELIST[Amount],ISSUELIST[Cheque Date],TODAY()+1) -> 0 | E47: =COUNTIFS(ISSUELIST[Cheque Date],TODAY()+1) -> 0
C48: Day After Tomorrow | D48: =SUMIFS(ISSUELIST[Amount],ISSUELIST[Cheque Date],TODAY()+2) -> 0 | E48: =COUNTIFS(ISSUELIST[Cheque Date],TODAY()+2) -> 0
C49: TOTALS | D49: =SUM(D46:D48) -> 0 | E49: =SUM(E46:E48) -> 0
